Body,Body name,Date,Transaction number,Amount,Non recoverable VAT included in amount,Supplier name,Supplier ID,Expense area,Fund type,Expense type,Category description,,
http://statistics.data.gov.uk/search?search=E07000114,Thanet District Council,06/03/2018,449597,1025.00,,Adams & Son (Holdings) Ltd,ADA002,Community Services,Revenue,Grants & Subscriptions,Rent Deposits,,
http://statistics.data.gov.uk/search?search=E07000114,Thanet District Council,06/03/2018,448538,130.00,,All Sign Solutions Ltd,ALL002,Community Services,Revenue,"Equip, Furniture And Materials",Building Construction Material,,
http://statistics.data.gov.uk/search?search=E07000114,Thanet District Council,06/03/2018,448538,140.00,,All Sign Solutions Ltd,ALL002,Community Services,Revenue,Fixtures & Fittings,Building Construction Material,,
http://statistics.data.gov.uk/search?search=E07000114,Thanet District Council,06/03/2018,449577,4900.00,,Ascendit Lifts Ltd,ASC001,Corporate Resources and S151,Balance Sheet,Capital Exp-Non Council Assets,Grants,,
http://statistics.data.gov.uk/search?search=E07000114,Thanet District Council,06/03/2018,448282,2139.49,,Ats Euromaster Ltd,ATS002,Operational Services,Revenue,Direct Transport Costs,Vehicle Management,,
http://statistics.data.gov.uk/search?search=E07000114,Thanet District Council,06/03/2018,449581,6967.55,,Bramling Construction Ltd,BRA020,Corporate Resources and S151,Balance Sheet,Capital Exp-Non Council Assets,Grants,,
http://statistics.data.gov.uk/search?search=E07000114,Thanet District Council,06/03/2018,449590,592.00,,Bramling Construction Ltd,BRA020,Corporate Resources and S151,Balance Sheet,Capital Exp-Non Council Assets,Grants,,
http://statistics.data.gov.uk/search?search=E07000114,Thanet District Council,06/03/2018,449594,8237.30,,Bramling Construction Ltd,BRA020,Corporate Resources and S151,Balance Sheet,Capital Exp-Non Council Assets,Grants,,
http://statistics.data.gov.uk/search?search=E07000114,Thanet District Council,06/03/2018,448334,13644.00,,Callcredit Limited,CAL009,East Kent Shared Services,Revenue,Communications & Computing,Financial Services,,
http://statistics.data.gov.uk/search?search=E07000114,Thanet District Council,06/03/2018,448335,11612.00,,Callcredit Limited,CAL009,East Kent Shared Services,Revenue,Communications & Computing,Financial Services,,
http://statistics.data.gov.uk/search?search=E07000114,Thanet District Council,06/03/2018,448277,3138.70,,Cobalt Telephone Technologies Ltd,COB002,Operational Services,Revenue,Services,ICT,,
http://statistics.data.gov.uk/search?search=E07000114,Thanet District Council,06/03/2018,448337,258.68,,Cobalt Telephone Technologies Ltd,COB002,Operational Services,Revenue,Services,ICT,,
http://statistics.data.gov.uk/search?search=E07000114,Thanet District Council,06/03/2018,448294,37.00,,Convenience Services Limited,CON040,Operational Services,Revenue,"Equip, Furniture And Materials",Facilities And Mangement Serv,,
http://statistics.data.gov.uk/search?search=E07000114,Thanet District Council,06/03/2018,448294,214.00,,Convenience Services Limited,CON040,Operational Services,Revenue,"Repairs,  Alter & Mtce - Build",Facilities And Mangement Serv,,
http://statistics.data.gov.uk/search?search=E07000114,Thanet District Council,06/03/2018,449192,569.50,,Csl Power Systems Ltd,CSL002,Operational Services,Revenue,"Repairs,  Alter & Mtce - Build",Building Construction Material,,
http://statistics.data.gov.uk/search?search=E07000114,Thanet District Council,06/03/2018,449071,2939.50,,Dcb (Kent) Ltd,DCB001,Corporate Resources and S151,Balance Sheet,Repairs And Mtce Holding A/C,Construction-Repair And Maint,,
http://statistics.data.gov.uk/search?search=E07000114,Thanet District Council,06/03/2018,449077,7094.44,,Dcb (Kent) Ltd,DCB001,Corporate Resources and S151,Balance Sheet,Repairs And Mtce Holding A/C,Construction-Repair And Maint,,
http://statistics.data.gov.uk/search?search=E07000114,Thanet District Council,06/03/2018,449453,24158.29,,Dcb (Kent) Ltd,DCB001,Corporate Resources and S151,Balance Sheet,Repairs And Mtce Holding A/C,Construction-Repair And Maint,,
http://statistics.data.gov.uk/search?search=E07000114,Thanet District Council,06/03/2018,449458,130145.79,,Dcb (Kent) Ltd,DCB001,Corporate Resources and S151,Balance Sheet,Repairs And Mtce Holding A/C,Construction-Repair And Maint,,
http://statistics.data.gov.uk/search?search=E07000114,Thanet District Council,06/03/2018,444629,174391.00,,Dennis Eagle Ltd,DEN005,Corporate Resources and S151,Balance Sheet,Plant And Equipment,Vehicle Management,,
http://statistics.data.gov.uk/search?search=E07000114,Thanet District Council,06/03/2018,448345,654.85,,Dha Planning Limited,DHA002,Community Services,Revenue,Services,Consultancy,,
http://statistics.data.gov.uk/search?search=E07000114,Thanet District Council,06/03/2018,448346,1750.66,,Dha Planning Limited,DHA002,Community Services,Revenue,Services,Consultancy,,
http://statistics.data.gov.uk/search?search=E07000114,Thanet District Council,06/03/2018,449579,4700.00,,Dolphin Lifts Kent,DOL003,Corporate Resources and S151,Balance Sheet,Capital Exp-Non Council Assets,Grants,,
http://statistics.data.gov.uk/search?search=E07000114,Thanet District Council,06/03/2018,449584,5150.00,,Dolphin Lifts Kent,DOL003,Corporate Resources and S151,Balance Sheet,Capital Exp-Non Council Assets,Grants,,
http://statistics.data.gov.uk/search?search=E07000114,Thanet District Council,06/03/2018,449024,295.72,,E.On,EON001,Community Services,Revenue,Energy Costs,Utilities,,
http://statistics.data.gov.uk/search?search=E07000114,Thanet District Council,06/03/2018,449198,329.81,,E.On,EON001,Community Services,Revenue,Energy Costs,Utilities,,
http://statistics.data.gov.uk/search?search=E07000114,Thanet District Council,06/03/2018,448543,264.80,,Eagle Envelopes Ltd,EAG001,East Kent Shared Services,Revenue,"Print, Stat And Gen Off Exps",Stationery,,
http://statistics.data.gov.uk/search?search=E07000114,Thanet District Council,06/03/2018,448770,654.83,,Edmundson Electrical Limited,EDM001,Operational Services,Revenue,"Repairs,  Alter & Mtce - Build",Building Construction Material,,
http://statistics.data.gov.uk/search?search=E07000114,Thanet District Council,06/03/2018,449090,211.20,,Edmundson Electrical Limited,EDM001,Operational Services,Revenue,"Repairs,  Alter & Mtce - Build",Building Construction Material,,
http://statistics.data.gov.uk/search?search=E07000114,Thanet District Council,06/03/2018,449130,1565.42,,Edmundson Electrical Limited,EDM001,Operational Services,Revenue,"Repairs,  Alter & Mtce - Build",Building Construction Material,,
http://statistics.data.gov.uk/search?search=E07000114,Thanet District Council,06/03/2018,449131,222.40,,Edmundson Electrical Limited,EDM001,Operational Services,Revenue,"Repairs,  Alter & Mtce - Build",Building Construction Material,,
http://statistics.data.gov.uk/search?search=E07000114,Thanet District Council,06/03/2018,448831,639.46,,Electrical Lighting Solutions Ltd,ELE013,Corporate Governance,Revenue,"Repairs,  Alter & Mtce - Build",Building Construction Material,,
http://statistics.data.gov.uk/search?search=E07000114,Thanet District Council,06/03/2018,448832,420.06,,Electrical Lighting Solutions Ltd,ELE013,Operational Services,Revenue,"Repairs,  Alter & Mtce - Build",Building Construction Material,,
http://statistics.data.gov.uk/search?search=E07000114,Thanet District Council,06/03/2018,448981,637.00,,Electrical Lighting Solutions Ltd,ELE013,Corporate Governance,Revenue,"Repairs,  Alter & Mtce - Build",Building Construction Material,,
http://statistics.data.gov.uk/search?search=E07000114,Thanet District Council,06/03/2018,449578,526.00,,Family Mosaic Housing,FAM001,Corporate Resources and S151,Balance Sheet,Capital Exp-Non Council Assets,Housing Management,,
http://statistics.data.gov.uk/search?search=E07000114,Thanet District Council,06/03/2018,449580,1320.70,,Family Mosaic Housing,FAM001,Corporate Resources and S151,Balance Sheet,Capital Exp-Non Council Assets,Housing Management,,
http://statistics.data.gov.uk/search?search=E07000114,Thanet District Council,06/03/2018,449582,930.24,,Family Mosaic Housing,FAM001,Corporate Resources and S151,Balance Sheet,Capital Exp-Non Council Assets,Housing Management,,
http://statistics.data.gov.uk/search?search=E07000114,Thanet District Council,06/03/2018,449585,1924.73,,Family Mosaic Housing,FAM001,Corporate Resources and S151,Balance Sheet,Capital Exp-Non Council Assets,Housing Management,,
http://statistics.data.gov.uk/search?search=E07000114,Thanet District Council,06/03/2018,449587,958.55,,Family Mosaic Housing,FAM001,Corporate Resources and S151,Balance Sheet,Capital Exp-Non Council Assets,Housing Management,,
http://statistics.data.gov.uk/search?search=E07000114,Thanet District Council,06/03/2018,449593,1258.73,,Family Mosaic Housing,FAM001,Corporate Resources and S151,Balance Sheet,Capital Exp-Non Council Assets,Housing Management,,
http://statistics.data.gov.uk/search?search=E07000114,Thanet District Council,06/03/2018,449595,992.48,,Family Mosaic Housing,FAM001,Corporate Resources and S151,Balance Sheet,Capital Exp-Non Council Assets,Housing Management,,
http://statistics.data.gov.uk/search?search=E07000114,Thanet District Council,06/03/2018,449149,351.94,,Farrer Barnes Limited,FAR012,Corporate Resources and S151,Revenue,Agency Staff,Human Resources,,
http://statistics.data.gov.uk/search?search=E07000114,Thanet District Council,06/03/2018,449150,630.62,,Farrer Barnes Limited,FAR012,Corporate Resources and S151,Revenue,Agency Staff,Human Resources,,
http://statistics.data.gov.uk/search?search=E07000114,Thanet District Council,06/03/2018,449428,722.65,,Farrer Barnes Limited,FAR012,Corporate Resources and S151,Revenue,Agency Staff,Human Resources,,
http://statistics.data.gov.uk/search?search=E07000114,Thanet District Council,06/03/2018,449429,643.69,,Farrer Barnes Limited,FAR012,Corporate Resources and S151,Revenue,Agency Staff,Human Resources,,
http://statistics.data.gov.uk/search?search=E07000114,Thanet District Council,06/03/2018,449430,1370.88,,Farrer Barnes Limited,FAR012,Corporate Resources and S151,Revenue,Agency Staff,Human Resources,,
http://statistics.data.gov.uk/search?search=E07000114,Thanet District Council,06/03/2018,448988,332.00,,Freeston Water Treatment Ltd,FRE004,Operational Services,Revenue,"Equip, Furniture And Materials",Cleaning And Janitorial,,
http://statistics.data.gov.uk/search?search=E07000114,Thanet District Council,06/03/2018,448542,751.10,,Hays Specialist Recruitment Ltd,HAY020,Community Services,Revenue,Agency Staff,Human Resources,,
http://statistics.data.gov.uk/search?search=E07000114,Thanet District Council,06/03/2018,449072,973.10,,Hr Go (Kent) Ltd,HRG001,Operational Services,Revenue,Agency Staff,Human Resources,,
http://statistics.data.gov.uk/search?search=E07000114,Thanet District Council,06/03/2018,448540,934.65,,Hydraquip Hose & Hydraulics,HYD003,Operational Services,Revenue,"Repairs,  Alter & Mtce - Build",Vehicle Management,,
http://statistics.data.gov.uk/search?search=E07000114,Thanet District Council,06/03/2018,449160,638.10,,Jml Consultants Uk Ltd,JML001,Operational Services,Revenue,"Equip, Furniture And Materials",Legal Services,,
http://statistics.data.gov.uk/search?search=E07000114,Thanet District Council,06/03/2018,449589,451.20,,John Gale,GAL001,Corporate Resources and S151,Balance Sheet,Capital Exp-Non Council Assets,Grants,,
http://statistics.data.gov.uk/search?search=E07000114,Thanet District Council,06/03/2018,448348,431.33,,Kent County Council,KCC002,Operational Services,Revenue,"Repairs,  Alter & Mtce - Build",Various Cats-Public Sector,,
http://statistics.data.gov.uk/search?search=E07000114,Thanet District Council,06/03/2018,449433,2478.00,,Kent County Council,KCC002,Community Services,Revenue,Services,Various Cats-Public Sector,,
http://statistics.data.gov.uk/search?search=E07000114,Thanet District Council,06/03/2018,448595,2000.33,,Kent County Council (Kcs),KCC003,Operational Services,Revenue,Energy Costs,Facilities And Mangement Serv,,
http://statistics.data.gov.uk/search?search=E07000114,Thanet District Council,06/03/2018,448596,925.97,,Kent County Council (Kcs),KCC003,Operational Services,Revenue,Energy Costs,Facilities And Mangement Serv,,
http://statistics.data.gov.uk/search?search=E07000114,Thanet District Council,06/03/2018,448597,1012.47,,Kent County Council (Kcs),KCC003,Operational Services,Revenue,Energy Costs,Facilities And Mangement Serv,,
http://statistics.data.gov.uk/search?search=E07000114,Thanet District Council,06/03/2018,448599,1996.63,,Kent County Council (Kcs),KCC003,Operational Services,Revenue,Energy Costs,Facilities And Mangement Serv,,
http://statistics.data.gov.uk/search?search=E07000114,Thanet District Council,06/03/2018,448623,2137.89,,Kent County Council (Kcs),KCC003,Corporate Governance,Revenue,Energy Costs,Facilities And Mangement Serv,,
http://statistics.data.gov.uk/search?search=E07000114,Thanet District Council,06/03/2018,448625,474.50,,Kent County Council (Kcs),KCC003,Corporate Governance,Revenue,Energy Costs,Facilities And Mangement Serv,,
http://statistics.data.gov.uk/search?search=E07000114,Thanet District Council,06/03/2018,448626,557.86,,Kent County Council (Kcs),KCC003,Operational Services,Revenue,Energy Costs,Facilities And Mangement Serv,,
http://statistics.data.gov.uk/search?search=E07000114,Thanet District Council,06/03/2018,448627,1756.72,,Kent County Council (Kcs),KCC003,Community Services,Revenue,Energy Costs,Facilities And Mangement Serv,,
http://statistics.data.gov.uk/search?search=E07000114,Thanet District Council,06/03/2018,448629,1465.26,,Kent County Council (Kcs),KCC003,Corporate Governance,Revenue,Energy Costs,Facilities And Mangement Serv,,
http://statistics.data.gov.uk/search?search=E07000114,Thanet District Council,06/03/2018,448630,2078.75,,Kent County Council (Kcs),KCC003,Operational Services,Revenue,Energy Costs,Facilities And Mangement Serv,,
http://statistics.data.gov.uk/search?search=E07000114,Thanet District Council,06/03/2018,448635,703.56,,Kent County Council (Kcs),KCC003,Operational Services,Revenue,Energy Costs,Facilities And Mangement Serv,,
http://statistics.data.gov.uk/search?search=E07000114,Thanet District Council,06/03/2018,449085,242.45,,Kent Police & Crime Commissioner,KPC002,Operational Services,Revenue,Services,Facilities And Mangement Serv,,
http://statistics.data.gov.uk/search?search=E07000114,Thanet District Council,06/03/2018,448351,3671.67,,Kgb Cleaning & Support Services Ltd,KGB001,Operational Services,Revenue,Cleaning & Domestic Supplies,Cleaning And Janitorial,,
http://statistics.data.gov.uk/search?search=E07000114,Thanet District Council,06/03/2018,449583,12049.43,,Kierchris Homes Limited,KIE003,Corporate Resources and S151,Balance Sheet,Capital Exp-Non Council Assets,Grants,,
http://statistics.data.gov.uk/search?search=E07000114,Thanet District Council,06/03/2018,449436,800.00,,Km Media Group Limited,KMM001,Community Services,Revenue,Miscellaneous Expenses,Facilities And Mangement Serv,,
http://statistics.data.gov.uk/search?search=E07000114,Thanet District Council,06/03/2018,448280,400.00,,Land Use Consultants Limited,LAN032,Community Services,Revenue,Services,Consultancy,,
http://statistics.data.gov.uk/search?search=E07000114,Thanet District Council,06/03/2018,449444,15713.69,,Mears Ltd,MEA003,Corporate Resources and S151,Balance Sheet,Repairs And Mtce Holding A/C,Construction-Repair And Maint,,
http://statistics.data.gov.uk/search?search=E07000114,Thanet District Council,06/03/2018,449445,1162.12,,Mears Ltd,MEA003,Corporate Resources and S151,Balance Sheet,Repairs And Mtce Holding A/C,Construction-Repair And Maint,,
http://statistics.data.gov.uk/search?search=E07000114,Thanet District Council,06/03/2018,449446,9774.81,,Mears Ltd,MEA003,Corporate Resources and S151,Balance Sheet,Repairs And Mtce Holding A/C,Construction-Repair And Maint,,
http://statistics.data.gov.uk/search?search=E07000114,Thanet District Council,06/03/2018,449447,1510.16,,Mears Ltd,MEA003,Corporate Resources and S151,Balance Sheet,Repairs And Mtce Holding A/C,Construction-Repair And Maint,,
http://statistics.data.gov.uk/search?search=E07000114,Thanet District Council,06/03/2018,449448,16955.02,,Mears Ltd,MEA003,Corporate Resources and S151,Balance Sheet,Repairs And Mtce Holding A/C,Construction-Repair And Maint,,
http://statistics.data.gov.uk/search?search=E07000114,Thanet District Council,06/03/2018,449449,32277.98,,Mears Ltd,MEA003,Corporate Resources and S151,Balance Sheet,Repairs And Mtce Holding A/C,Construction-Repair And Maint,,
http://statistics.data.gov.uk/search?search=E07000114,Thanet District Council,06/03/2018,449454,22743.00,,Mears Ltd,MEA003,Corporate Resources and S151,Balance Sheet,Repairs And Mtce Holding A/C,Construction-Repair And Maint,,
http://statistics.data.gov.uk/search?search=E07000114,Thanet District Council,06/03/2018,449431,1950.00,,Meridian Membranes,MER018,Corporate Resources and S151,Balance Sheet,Repairs And Mtce Holding A/C,Building Construction Material,,
http://statistics.data.gov.uk/search?search=E07000114,Thanet District Council,06/03/2018,449074,332.50,,Michelle Williams,WIL064,Community Services,Revenue,Services,Arts And Leisure Services,,
http://statistics.data.gov.uk/search?search=E07000114,Thanet District Council,06/03/2018,448297,2500.00,,Nathaniel Lichfield & Partners Ltd,LIC001,Community Services,Revenue,Services,Consultancy,,
http://statistics.data.gov.uk/search?search=E07000114,Thanet District Council,06/03/2018,449125,724.88,,Ohuk Limited,OHU001,Operational Services,Revenue,Agency Staff,Human Resources,,
http://statistics.data.gov.uk/search?search=E07000114,Thanet District Council,06/03/2018,449426,85388.06,,P & R Installation Company Limited,PRI035,Corporate Resources and S151,Balance Sheet,Repairs And Mtce Holding A/C,Building Construction Material,,
http://statistics.data.gov.uk/search?search=E07000114,Thanet District Council,06/03/2018,449596,953.80,,Prospects Assured Uk Ltd,PRO032,Community Services,Revenue,Grants & Subscriptions,Rent Deposits,,
http://statistics.data.gov.uk/search?search=E07000114,Thanet District Council,06/03/2018,445978,540.00,,R Cannon,CAN007,Corporate Resources and S151,Balance Sheet,Rechargeable Works,Maritime Services,,
http://statistics.data.gov.uk/search?search=E07000114,Thanet District Council,06/03/2018,447076,385.00,,R Cannon,CAN007,Operational Services,Revenue,Services,Maritime Services,,
http://statistics.data.gov.uk/search?search=E07000114,Thanet District Council,06/03/2018,448724,840.02,,Scottish Water Business Stream Ltd,SCO019,Operational Services,Revenue,Water Services,Utilities,,
http://statistics.data.gov.uk/search?search=E07000114,Thanet District Council,06/03/2018,449048,3550.56,,Scottish Water Business Stream Ltd,SCO019,Operational Services,Revenue,Water Services,Utilities,,
http://statistics.data.gov.uk/search?search=E07000114,Thanet District Council,06/03/2018,449056,427.74,,Scottish Water Business Stream Ltd,SCO019,Operational Services,Revenue,Water Services,Utilities,,
http://statistics.data.gov.uk/search?search=E07000114,Thanet District Council,06/03/2018,449062,2703.29,,Scottish Water Business Stream Ltd,SCO019,Operational Services,Revenue,Water Services,Utilities,,
http://statistics.data.gov.uk/search?search=E07000114,Thanet District Council,06/03/2018,449064,329.53,,Scottish Water Business Stream Ltd,SCO019,Operational Services,Revenue,Water Services,Utilities,,
http://statistics.data.gov.uk/search?search=E07000114,Thanet District Council,06/03/2018,449066,3679.24,,Scottish Water Business Stream Ltd,SCO019,Operational Services,Revenue,Water Services,Utilities,,
http://statistics.data.gov.uk/search?search=E07000114,Thanet District Council,06/03/2018,449068,1014.37,,Scottish Water Business Stream Ltd,SCO019,Operational Services,Revenue,Water Services,Utilities,,
http://statistics.data.gov.uk/search?search=E07000114,Thanet District Council,06/03/2018,449069,1649.89,,Scottish Water Business Stream Ltd,SCO019,Operational Services,Revenue,Water Services,Utilities,,
http://statistics.data.gov.uk/search?search=E07000114,Thanet District Council,06/03/2018,449133,577.28,,Scottish Water Business Stream Ltd,SCO019,Operational Services,Revenue,Water Services,Utilities,,
http://statistics.data.gov.uk/search?search=E07000114,Thanet District Council,06/03/2018,449182,406.33,,Scottish Water Business Stream Ltd,SCO019,Operational Services,Revenue,Water Services,Utilities,,
http://statistics.data.gov.uk/search?search=E07000114,Thanet District Council,06/03/2018,449183,2078.84,,Scottish Water Business Stream Ltd,SCO019,Corporate Governance,Revenue,Water Services,Utilities,,
http://statistics.data.gov.uk/search?search=E07000114,Thanet District Council,06/03/2018,449422,288.75,,Sellick Partnership Ltd,SEL011,Corporate Governance,Revenue,Services,Human Resources,,
http://statistics.data.gov.uk/search?search=E07000114,Thanet District Council,06/03/2018,449414,1750.00,,Simon Randle,RAN007,Corporate Resources and S151,Balance Sheet,Council Dwellings,Legal Services,,
http://statistics.data.gov.uk/search?search=E07000114,Thanet District Council,06/03/2018,449402,1632.00,,Socotec Uk Limited,SOC005,Community Services,Revenue,Services,Environmental Services,,
http://statistics.data.gov.uk/search?search=E07000114,Thanet District Council,06/03/2018,449588,5412.00,,South East Building Company Limited,SEB001,Corporate Resources and S151,Balance Sheet,Capital Exp-Non Council Assets,Grants,,
http://statistics.data.gov.uk/search?search=E07000114,Thanet District Council,06/03/2018,449592,10456.05,,South East Building Company Limited,SEB001,Corporate Resources and S151,Balance Sheet,Capital Exp-Non Council Assets,Grants,,
http://statistics.data.gov.uk/search?search=E07000114,Thanet District Council,06/03/2018,449025,869.61,,Southern Electric,SEL007,Operational Services,Revenue,Energy Costs,Utilities,,
http://statistics.data.gov.uk/search?search=E07000114,Thanet District Council,06/03/2018,449027,827.83,,Southern Electric,SEL007,Operational Services,Revenue,Energy Costs,Utilities,,
http://statistics.data.gov.uk/search?search=E07000114,Thanet District Council,06/03/2018,449031,707.38,,Southern Electric,SEL007,Operational Services,Revenue,Energy Costs,Utilities,,
http://statistics.data.gov.uk/search?search=E07000114,Thanet District Council,06/03/2018,449170,2864.90,,Southern Electric,SEL007,Community Services,Revenue,Energy Costs,Utilities,,
http://statistics.data.gov.uk/search?search=E07000114,Thanet District Council,06/03/2018,449171,2032.26,,Southern Electric,SEL007,Community Services,Revenue,Energy Costs,Utilities,,
http://statistics.data.gov.uk/search?search=E07000114,Thanet District Council,06/03/2018,449172,2536.57,,Southern Electric,SEL007,Community Services,Revenue,Energy Costs,Utilities,,
http://statistics.data.gov.uk/search?search=E07000114,Thanet District Council,06/03/2018,449180,1886.43,,Southern Electric,SEL007,Operational Services,Revenue,Energy Costs,Utilities,,
http://statistics.data.gov.uk/search?search=E07000114,Thanet District Council,06/03/2018,449387,313.57,,Southern Electric,SEL007,Community Services,Revenue,Energy Costs,Utilities,,
http://statistics.data.gov.uk/search?search=E07000114,Thanet District Council,06/03/2018,448522,223.55,,Standfast Burglar Alarm Co (Ek) Ltd,STA003,Operational Services,Revenue,"Repairs,  Alter & Mtce - Build",Facilities And Mangement Serv,,
http://statistics.data.gov.uk/search?search=E07000114,Thanet District Council,06/03/2018,449055,1680.00,,Thanet Nursery Project Limited,TNU001,Corporate Governance,Revenue,Rents,Facilities And Mangement Serv,,
http://statistics.data.gov.uk/search?search=E07000114,Thanet District Council,06/03/2018,448740,752.50,,Townsends Engineering Ltd,TOW016,Operational Services,Revenue,"Repairs,  Alter & Mtce - Build",Construction-Repair And Maint,,
http://statistics.data.gov.uk/search?search=E07000114,Thanet District Council,06/03/2018,448741,775.50,,Townsends Engineering Ltd,TOW016,Corporate Resources and S151,Balance Sheet,Other Land And Buildings-Hra,Construction-Repair And Maint,,
http://statistics.data.gov.uk/search?search=E07000114,Thanet District Council,06/03/2018,448953,775.50,,Townsends Engineering Ltd,TOW016,Operational Services,Revenue,"Repairs,  Alter & Mtce - Build",Construction-Repair And Maint,,
http://statistics.data.gov.uk/search?search=E07000114,Thanet District Council,06/03/2018,449586,7987.85,,Trueden Disability Adaptations Ltd,TRU012,Corporate Resources and S151,Balance Sheet,Capital Exp-Non Council Assets,Grants,,
http://statistics.data.gov.uk/search?search=E07000114,Thanet District Council,06/03/2018,446274,262.20,,Viridor Waste Management Ltd,VIR003,Corporate Governance,Revenue,Private Contractors,Environmental Services,,
http://statistics.data.gov.uk/search?search=E07000114,Thanet District Council,06/03/2018,449162,4296.62,,W G Burbridge,BUR016,Operational Services,Revenue,"Repairs,  Alter & Mtce - Build",Building Construction Material,,
http://statistics.data.gov.uk/search?search=E07000114,Thanet District Council,06/03/2018,449058,903.27,,Your Leisure Kent Limited,YOU016,Community Services,Revenue,Expenses,Arts And Leisure Services,,
http://statistics.data.gov.uk/search?search=E07000114,Thanet District Council,08/03/2018,448573,20.00,,Edmundson Electrical Limited,EDM001,Operational Services,Revenue,"Equip, Furniture And Materials",Building Construction Material,,
http://statistics.data.gov.uk/search?search=E07000114,Thanet District Council,08/03/2018,448573,344.34,,Edmundson Electrical Limited,EDM001,Operational Services,Revenue,"Repairs,  Alter & Mtce - Build",Building Construction Material,,
http://statistics.data.gov.uk/search?search=E07000114,Thanet District Council,08/03/2018,449696,10654.91,,Norton Way Motors Limited,NOR045,Corporate Resources and S151,Balance Sheet,Plant And Equipment,Vehicle Management,,
http://statistics.data.gov.uk/search?search=E07000114,Thanet District Council,08/03/2018,449696,295.00,,Norton Way Motors Limited,NOR045,Operational Services,Revenue,Direct Transport Costs,Vehicle Management,,
http://statistics.data.gov.uk/search?search=E07000114,Thanet District Council,08/03/2018,448818,2585.41,,Otterham Consulting Limited,OTT004,Corporate Governance,Revenue,Services,Consultancy,,
http://statistics.data.gov.uk/search?search=E07000114,Thanet District Council,08/03/2018,448818,3664.59,,Otterham Consulting Limited,OTT004,Corporate Resources and S151,Balance Sheet,Other Land And Buildings-Hra,Consultancy,,
http://statistics.data.gov.uk/search?search=E07000114,Thanet District Council,08/03/2018,449413,4249.00,,Otterham Consulting Limited,OTT004,Corporate Governance,Revenue,Services,Consultancy,,
http://statistics.data.gov.uk/search?search=E07000114,Thanet District Council,08/03/2018,449546,794.90,,Standfast Burglar Alarm Co (Ek) Ltd,STA003,Corporate Governance,Revenue,"Repairs,  Alter & Mtce - Build",Facilities And Mangement Serv,,
http://statistics.data.gov.uk/search?search=E07000114,Thanet District Council,08/03/2018,449552,614.05,,Standfast Burglar Alarm Co (Ek) Ltd,STA003,Operational Services,Revenue,"Repairs,  Alter & Mtce - Build",Facilities And Mangement Serv,,
http://statistics.data.gov.uk/search?search=E07000114,Thanet District Council,09/03/2018,449060,796.00,,Bt Payment Services Ltd,BTE003,Corporate Resources and S151,Revenue,Communications & Computing,ICT,,
http://statistics.data.gov.uk/search?search=E07000114,Thanet District Council,09/03/2018,449697,2541.92,,Bt Payment Services Ltd,BTE003,Corporate Resources and S151,Balance Sheet,Telephone Holding Account,ICT,,
http://statistics.data.gov.uk/search?search=E07000114,Thanet District Council,09/03/2018,449801,245.00,,Bt Payment Services Ltd,BTE003,Operational Services,Revenue,Communications & Computing,ICT,,
http://statistics.data.gov.uk/search?search=E07000114,Thanet District Council,09/03/2018,449519,353.71,,Imserv Europe Ltd,IMS002,Operational Services,Revenue,Energy Costs,Utilities,,
http://statistics.data.gov.uk/search?search=E07000114,Thanet District Council,09/03/2018,449063,26356.59,,Scottish Water Business Stream Ltd,SCO019,Corporate Governance,Revenue,Water Services,Utilities,,
http://statistics.data.gov.uk/search?search=E07000114,Thanet District Council,09/03/2018,449521,1345.44,,Scottish Water Business Stream Ltd,SCO019,Operational Services,Revenue,Water Services,Utilities,,
http://statistics.data.gov.uk/search?search=E07000114,Thanet District Council,09/03/2018,449524,1188.03,,Scottish Water Business Stream Ltd,SCO019,Operational Services,Revenue,Water Services,Utilities,,
http://statistics.data.gov.uk/search?search=E07000114,Thanet District Council,09/03/2018,449713,-8543.17,,Scottish Water Business Stream Ltd,SCO019,Corporate Governance,Revenue,Water Services,Utilities,,
http://statistics.data.gov.uk/search?search=E07000114,Thanet District Council,09/03/2018,449714,1842.64,,Scottish Water Business Stream Ltd,SCO019,Operational Services,Revenue,Water Services,Utilities,,
http://statistics.data.gov.uk/search?search=E07000114,Thanet District Council,09/03/2018,445388,534.82,,Southern Electric,SEL007,Community Services,Revenue,Energy Costs,Utilities,,
http://statistics.data.gov.uk/search?search=E07000114,Thanet District Council,09/03/2018,447496,1142.74,,Southern Electric,SEL007,Corporate Governance,Revenue,Energy Costs,Utilities,,
http://statistics.data.gov.uk/search?search=E07000114,Thanet District Council,09/03/2018,448368,-534.82,,Southern Electric,SEL007,Community Services,Revenue,Energy Costs,Utilities,,
http://statistics.data.gov.uk/search?search=E07000114,Thanet District Council,09/03/2018,448371,534.82,,Southern Electric,SEL007,Community Services,Revenue,Energy Costs,Utilities,,
http://statistics.data.gov.uk/search?search=E07000114,Thanet District Council,09/03/2018,449488,-534.82,,Southern Electric,SEL007,Community Services,Revenue,Energy Costs,Utilities,,
http://statistics.data.gov.uk/search?search=E07000114,Thanet District Council,09/03/2018,449504,-293.22,,Southern Electric,SEL007,Operational Services,Revenue,Energy Costs,Utilities,,
http://statistics.data.gov.uk/search?search=E07000114,Thanet District Council,09/03/2018,449514,1348.66,,Southern Electric,SEL007,Operational Services,Revenue,Energy Costs,Utilities,,
http://statistics.data.gov.uk/search?search=E07000114,Thanet District Council,09/03/2018,449562,6918.68,,Southern Electric,SEL007,Community Services,Revenue,Energy Costs,Utilities,,
http://statistics.data.gov.uk/search?search=E07000114,Thanet District Council,09/03/2018,449699,386.96,,Southern Electric,SEL007,Community Services,Revenue,Energy Costs,Utilities,,
http://statistics.data.gov.uk/search?search=E07000114,Thanet District Council,09/03/2018,449700,1821.81,,Southern Electric,SEL007,Community Services,Revenue,Energy Costs,Utilities,,
http://statistics.data.gov.uk/search?search=E07000114,Thanet District Council,09/03/2018,449704,1815.17,,Southern Electric,SEL007,Corporate Governance,Revenue,Energy Costs,Utilities,,
http://statistics.data.gov.uk/search?search=E07000114,Thanet District Council,09/03/2018,449707,-1142.74,,Southern Electric,SEL007,Corporate Governance,Revenue,Energy Costs,Utilities,,
http://statistics.data.gov.uk/search?search=E07000114,Thanet District Council,09/03/2018,449709,1241.95,,Southern Electric,SEL007,Corporate Governance,Revenue,Energy Costs,Utilities,,
http://statistics.data.gov.uk/search?search=E07000114,Thanet District Council,09/03/2018,449715,-1526.91,,Southern Electric,SEL007,Operational Services,Revenue,Energy Costs,Utilities,,
http://statistics.data.gov.uk/search?search=E07000114,Thanet District Council,09/03/2018,449716,562.89,,Southern Electric,SEL007,Operational Services,Revenue,Energy Costs,Utilities,,
http://statistics.data.gov.uk/search?search=E07000114,Thanet District Council,09/03/2018,449717,742.16,,Southern Electric,SEL007,Operational Services,Revenue,Energy Costs,Utilities,,
http://statistics.data.gov.uk/search?search=E07000114,Thanet District Council,09/03/2018,449724,1973.90,,Southern Electric,SEL007,Corporate Governance,Revenue,Energy Costs,Utilities,,
http://statistics.data.gov.uk/search?search=E07000114,Thanet District Council,09/03/2018,449727,3824.95,,Southern Electric,SEL007,Operational Services,Revenue,Energy Costs,Utilities,,
http://statistics.data.gov.uk/search?search=E07000114,Thanet District Council,13/03/2018,444921,5000.00,,Abavus Limited,ABA006,Operational Services,Revenue,Communications & Computing,ICT,,
http://statistics.data.gov.uk/search?search=E07000114,Thanet District Council,13/03/2018,449084,678.21,,Adecco Uk Ltd,ADE005,Chief Executive,Revenue,Agency Staff,Human Resources,,
http://statistics.data.gov.uk/search?search=E07000114,Thanet District Council,13/03/2018,449101,650.72,,Adecco Uk Ltd,ADE005,Chief Executive,Revenue,Agency Staff,Human Resources,,
http://statistics.data.gov.uk/search?search=E07000114,Thanet District Council,13/03/2018,449745,641.55,,Adecco Uk Ltd,ADE005,Chief Executive,Revenue,Agency Staff,Human Resources,,
http://statistics.data.gov.uk/search?search=E07000114,Thanet District Council,13/03/2018,449985,2695.00,,Amenity Horticultural Serv Ltd,AME001,Operational Services,Revenue,"Repairs,  Alter & Mtce - Build",Horticultural,,
http://statistics.data.gov.uk/search?search=E07000114,Thanet District Council,13/03/2018,449734,320.00,,Andy Morris,MOR028,Community Services,Revenue,Services,Arts And Leisure Services,,
http://statistics.data.gov.uk/search?search=E07000114,Thanet District Council,13/03/2018,449735,270.00,,Andy Morris,MOR028,Community Services,Revenue,Services,Arts And Leisure Services,,
http://statistics.data.gov.uk/search?search=E07000114,Thanet District Council,13/03/2018,449080,925.00,,Arco Training Services Limited,ARC014,Operational Services,Revenue,Training,Human Resources,,
http://statistics.data.gov.uk/search?search=E07000114,Thanet District Council,13/03/2018,449465,641.00,,Black & Veatch Limited,BLA032,Corporate Resources and S151,Balance Sheet,Plant And Equipment,Consultancy,,
http://statistics.data.gov.uk/search?search=E07000114,Thanet District Council,13/03/2018,449991,14675.00,,Bramling Construction Ltd,BRA020,Corporate Resources and S151,Balance Sheet,Capital Exp-Non Council Assets,Grants,,
http://statistics.data.gov.uk/search?search=E07000114,Thanet District Council,13/03/2018,449997,15815.00,,Bramling Construction Ltd,BRA020,Corporate Resources and S151,Balance Sheet,Capital Exp-Non Council Assets,Grants,,
http://statistics.data.gov.uk/search?search=E07000114,Thanet District Council,13/03/2018,449993,4080.00,,Broadstairs Gas Services Ltd,BRO083,Corporate Resources and S151,Balance Sheet,Capital Exp-Non Council Assets,Grants,,
http://statistics.data.gov.uk/search?search=E07000114,Thanet District Council,13/03/2018,449995,1980.00,,Broadstairs Gas Services Ltd,BRO083,Corporate Resources and S151,Balance Sheet,Capital Exp-Non Council Assets,Grants,,
http://statistics.data.gov.uk/search?search=E07000114,Thanet District Council,13/03/2018,449124,369.69,,Canon (Uk) Ltd,CAN021,Corporate Governance,Revenue,"Print, Stat And Gen Off Exps",Facilities And Mangement Serv,,
http://statistics.data.gov.uk/search?search=E07000114,Thanet District Council,13/03/2018,449510,2472.34,,Canon (Uk) Ltd,CAN021,Corporate Governance,Revenue,"Equip, Furniture And Materials",Facilities And Mangement Serv,,
http://statistics.data.gov.uk/search?search=E07000114,Thanet District Council,13/03/2018,449169,19878.33,,Canterbury City Council,CAN004,East Kent Shared Services,Revenue,Grants & Subscriptions,Various Cats-Public Sector,,
http://statistics.data.gov.uk/search?search=E07000114,Thanet District Council,13/03/2018,448792,2185.63,,Capita Business Services Ltd,CAP001,Corporate Resources and S151,Revenue,Services,Human Resources,,
http://statistics.data.gov.uk/search?search=E07000114,Thanet District Council,13/03/2018,449197,240.00,,Capita Business Services Ltd,CAP001,Corporate Resources and S151,Revenue,Communications & Computing,Human Resources,,
http://statistics.data.gov.uk/search?search=E07000114,Thanet District Council,13/03/2018,449143,300.00,,Centrix Limited T/A Adept,CEN020,East Kent Shared Services,Revenue,Communications & Computing,ICT,,
http://statistics.data.gov.uk/search?search=E07000114,Thanet District Council,13/03/2018,449427,2427.50,,Certas Energy Uk Ltd,CER005,Operational Services,Revenue,"Equip, Furniture And Materials",Vehicle Management,,
http://statistics.data.gov.uk/search?search=E07000114,Thanet District Council,13/03/2018,448972,1485.12,,Civica Uk Ltd,CIV003,East Kent Shared Services,Revenue,Communications & Computing,ICT,,
http://statistics.data.gov.uk/search?search=E07000114,Thanet District Council,13/03/2018,443244,1850.00,,Clear Skies Software Ltd,CLE004,Operational Services,Revenue,Communications & Computing,ICT,,
http://statistics.data.gov.uk/search?search=E07000114,Thanet District Council,13/03/2018,444432,625.00,,Clikapad Limited,CLI033,Corporate Resources and S151,Revenue,Services,Human Resources,,
http://statistics.data.gov.uk/search?search=E07000114,Thanet District Council,13/03/2018,449126,1696.00,,Cobalt Consulting (Uk) Limited,COB004,Corporate Governance,Revenue,Agency Staff,Human Resources,,
http://statistics.data.gov.uk/search?search=E07000114,Thanet District Council,13/03/2018,449459,473.20,,Computerland Uk Limited,COM045,East Kent Shared Services,Revenue,Communications & Computing,ICT,,
http://statistics.data.gov.uk/search?search=E07000114,Thanet District Council,13/03/2018,448656,1200.00,,Creditsafe Business Solutions Ltd,CRE013,Corporate Resources and S151,Revenue,Grants & Subscriptions,Financial Services,,
http://statistics.data.gov.uk/search?search=E07000114,Thanet District Council,13/03/2018,449790,528.00,,Disclosure And Barring Service,DIS017,Community Services,Revenue,"Equip, Furniture And Materials",Human Resources,,
http://statistics.data.gov.uk/search?search=E07000114,Thanet District Council,13/03/2018,449168,250000.00,,Dover District Council,DOV001,East Kent Shared Services,Revenue,Grants & Subscriptions,Various Cats-Public Sector,,
http://statistics.data.gov.uk/search?search=E07000114,Thanet District Council,13/03/2018,449556,4506.00,,Dover District Council,DOV001,Community Services,Revenue,Services,Various Cats-Public Sector,,
http://statistics.data.gov.uk/search?search=E07000114,Thanet District Council,13/03/2018,449557,446.20,,Dover District Council,DOV001,Corporate Governance,Revenue,Services,Various Cats-Public Sector,,
http://statistics.data.gov.uk/search?search=E07000114,Thanet District Council,13/03/2018,449692,1950.00,,Dr Alexander Marshall,MAR100,Operational Services,Revenue,Services,Cemetery And Crematorium,,
http://statistics.data.gov.uk/search?search=E07000114,Thanet District Council,13/03/2018,449693,3000.00,,Dr Alexander Marshall,MAR100,Operational Services,Revenue,Services,Cemetery And Crematorium,,
http://statistics.data.gov.uk/search?search=E07000114,Thanet District Council,13/03/2018,449938,1400.00,,Dr R K Chhabra,CHH001,Operational Services,Revenue,Services,Cemetery And Crematorium,,
http://statistics.data.gov.uk/search?search=E07000114,Thanet District Council,13/03/2018,449940,2800.00,,Dr R K Chhabra,CHH001,Operational Services,Revenue,Services,Cemetery And Crematorium,,
http://statistics.data.gov.uk/search?search=E07000114,Thanet District Council,13/03/2018,448612,590.00,,Eagle Security Alarms Ltd,EAG005,Operational Services,Revenue,"Repairs,  Alter & Mtce - Build",Facilities And Mangement Serv,,
http://statistics.data.gov.uk/search?search=E07000114,Thanet District Council,13/03/2018,448613,1180.00,,Eagle Security Alarms Ltd,EAG005,Operational Services,Revenue,"Repairs,  Alter & Mtce - Build",Facilities And Mangement Serv,,
http://statistics.data.gov.uk/search?search=E07000114,Thanet District Council,13/03/2018,449990,1137.63,,Family Mosaic Housing,FAM001,Corporate Resources and S151,Balance Sheet,Capital Exp-Non Council Assets,Housing Management,,
http://statistics.data.gov.uk/search?search=E07000114,Thanet District Council,13/03/2018,449992,2920.00,,Family Mosaic Housing,FAM001,Corporate Resources and S151,Balance Sheet,Capital Exp-Non Council Assets,Housing Management,,
http://statistics.data.gov.uk/search?search=E07000114,Thanet District Council,13/03/2018,449994,412.00,,Family Mosaic Housing,FAM001,Corporate Resources and S151,Balance Sheet,Capital Exp-Non Council Assets,Housing Management,,
http://statistics.data.gov.uk/search?search=E07000114,Thanet District Council,13/03/2018,449999,841.62,,Family Mosaic Housing,FAM001,Corporate Resources and S151,Balance Sheet,Capital Exp-Non Council Assets,Housing Management,,
http://statistics.data.gov.uk/search?search=E07000114,Thanet District Council,13/03/2018,450003,1246.22,,Family Mosaic Housing,FAM001,Corporate Resources and S151,Balance Sheet,Capital Exp-Non Council Assets,Housing Management,,
http://statistics.data.gov.uk/search?search=E07000114,Thanet District Council,13/03/2018,449148,595.00,,Freight Transport Association,FRE007,Operational Services,Revenue,Direct Transport Costs,Human Resources,,
http://statistics.data.gov.uk/search?search=E07000114,Thanet District Council,13/03/2018,450002,9446.88,,Hfd Construction,HFD001,Corporate Resources and S151,Balance Sheet,Capital Exp-Non Council Assets,Grants,,
http://statistics.data.gov.uk/search?search=E07000114,Thanet District Council,13/03/2018,449405,953.14,,Hilton Cabinet Co Ltd,HIL002,Operational Services,Revenue,"Equip, Furniture And Materials",Furniture And Soft Furnishings,,
http://statistics.data.gov.uk/search?search=E07000114,Thanet District Council,13/03/2018,448830,16425.50,,Hipperson Builders (M & E) Limited,HIP002,Corporate Resources and S151,Balance Sheet,Other Land And Buildings-Hra,Construction-Repair And Maint,,
http://statistics.data.gov.uk/search?search=E07000114,Thanet District Council,13/03/2018,449920,821.00,,Hoip Telecom Limited,HOI001,Community Services,Revenue,Services,Health And Safety,,
http://statistics.data.gov.uk/search?search=E07000114,Thanet District Council,13/03/2018,448999,635.34,,Hr Go (Kent) Ltd,HRG001,Operational Services,Revenue,Agency Staff,Human Resources,,
http://statistics.data.gov.uk/search?search=E07000114,Thanet District Council,13/03/2018,449076,816.75,,Hr Go (Kent) Ltd,HRG001,Operational Services,Revenue,Agency Staff,Human Resources,,
http://statistics.data.gov.uk/search?search=E07000114,Thanet District Council,13/03/2018,449079,449.55,,Hr Go (Kent) Ltd,HRG001,Operational Services,Revenue,Agency Staff,Human Resources,,
http://statistics.data.gov.uk/search?search=E07000114,Thanet District Council,13/03/2018,449079,179.48,,Hr Go (Kent) Ltd,HRG001,Operational Services,Revenue,Services,Human Resources,,
http://statistics.data.gov.uk/search?search=E07000114,Thanet District Council,13/03/2018,449083,1087.45,,Hr Go (Kent) Ltd,HRG001,Operational Services,Revenue,Agency Staff,Human Resources,,
http://statistics.data.gov.uk/search?search=E07000114,Thanet District Council,13/03/2018,449998,5413.71,,Hubbard & Houghton Construction Ltd,HUB003,Corporate Resources and S151,Balance Sheet,Capital Exp-Non Council Assets,Grants,,
http://statistics.data.gov.uk/search?search=E07000114,Thanet District Council,13/03/2018,448781,250.00,,Innovative Safety Systems Limited,INN002,Operational Services,Revenue,"Equip, Furniture And Materials",Vehicle Management,,
http://statistics.data.gov.uk/search?search=E07000114,Thanet District Council,13/03/2018,449157,210.00,,Irrv,IRR002,East Kent Shared Services,Revenue,"Print, Stat And Gen Off Exps",Human Resources,,
http://statistics.data.gov.uk/search?search=E07000114,Thanet District Council,13/03/2018,448957,600.00,,Jane Lambert,LAM014,Corporate Governance,Revenue,Services,Legal Services,,
http://statistics.data.gov.uk/search?search=E07000114,Thanet District Council,13/03/2018,449901,849.45,,Jne Security Ltd,JNE002,Community Services,Revenue,Services,Facilities And Mangement Serv,,
http://statistics.data.gov.uk/search?search=E07000114,Thanet District Council,13/03/2018,450001,681.70,,John Gale,GAL001,Corporate Resources and S151,Balance Sheet,Capital Exp-Non Council Assets,Grants,,
http://statistics.data.gov.uk/search?search=E07000114,Thanet District Council,13/03/2018,449159,1000.00,,Kent County Council,KCC002,Corporate Resources and S151,Balance Sheet,Investment Property For Lease,Various Cats-Public Sector,,
http://statistics.data.gov.uk/search?search=E07000114,Thanet District Council,13/03/2018,449988,7783.96,,Kierchris Homes Limited,KIE003,Corporate Resources and S151,Balance Sheet,Capital Exp-Non Council Assets,Grants,,
http://statistics.data.gov.uk/search?search=E07000114,Thanet District Council,13/03/2018,449563,786.28,,Ling Metals Limited,LIN004,Operational Services,Revenue,Cleaning & Domestic Supplies,Environmental Services,,
http://statistics.data.gov.uk/search?search=E07000114,Thanet District Council,13/03/2018,448763,10250.00,,Luv Corp Ltd,LUV001,Corporate Resources and S151,Revenue,Services,ICT,,
http://statistics.data.gov.uk/search?search=E07000114,Thanet District Council,13/03/2018,447589,126.06,,Lyreco Uk Limited,LYR001,Corporate Governance,Revenue,Services,Stationery,,
http://statistics.data.gov.uk/search?search=E07000114,Thanet District Council,13/03/2018,448828,121.56,,Lyreco Uk Limited,LYR001,Operational Services,Revenue,Services,Stationery,,
http://statistics.data.gov.uk/search?search=E07000114,Thanet District Council,13/03/2018,449087,440.00,,Lyreco Uk Limited,LYR001,Corporate Governance,Revenue,"Print, Stat And Gen Off Exps",Stationery,,
http://statistics.data.gov.uk/search?search=E07000114,Thanet District Council,13/03/2018,449193,278.00,,Mag:Net Solutions Limited,MAG005,East Kent Shared Services,Revenue,Services,ICT,,
http://statistics.data.gov.uk/search?search=E07000114,Thanet District Council,13/03/2018,449194,302.90,,Mag:Net Solutions Limited,MAG005,East Kent Shared Services,Revenue,Services,ICT,,
http://statistics.data.gov.uk/search?search=E07000114,Thanet District Council,13/03/2018,449158,593.60,,Main Man Supplies Ltd,MAI001,Operational Services,Revenue,"Clothes, Uniforms & Laundry",Clothing,,
http://statistics.data.gov.uk/search?search=E07000114,Thanet District Council,13/03/2018,449094,2505.08,,Mears Ltd,MEA003,Corporate Governance,Revenue,"Repairs,  Alter & Mtce - Build",Construction-Repair And Maint,,
http://statistics.data.gov.uk/search?search=E07000114,Thanet District Council,13/03/2018,449142,1202.41,,Mears Ltd,MEA003,Operational Services,Revenue,"Repairs,  Alter & Mtce - Build",Construction-Repair And Maint,,
http://statistics.data.gov.uk/search?search=E07000114,Thanet District Council,13/03/2018,449145,621.89,,Mears Ltd,MEA003,Operational Services,Revenue,"Repairs,  Alter & Mtce - Build",Construction-Repair And Maint,,
http://statistics.data.gov.uk/search?search=E07000114,Thanet District Council,13/03/2018,449424,282.92,,Mears Ltd,MEA003,Community Services,Revenue,"Repairs,  Alter & Mtce - Build",Construction-Repair And Maint,,
http://statistics.data.gov.uk/search?search=E07000114,Thanet District Council,13/03/2018,449424,405.08,,Mears Ltd,MEA003,Corporate Governance,Revenue,"Repairs,  Alter & Mtce - Build",Construction-Repair And Maint,,
http://statistics.data.gov.uk/search?search=E07000114,Thanet District Council,13/03/2018,449424,688.00,,Mears Ltd,MEA003,Operational Services,Revenue,"Repairs,  Alter & Mtce - Build",Construction-Repair And Maint,,
http://statistics.data.gov.uk/search?search=E07000114,Thanet District Council,13/03/2018,449412,1275.00,,Michael Page Int Recruitment Ltd,PAG008,East Kent Shared Services,Revenue,Agency Staff,Human Resources,,
http://statistics.data.gov.uk/search?search=E07000114,Thanet District Council,13/03/2018,448958,225.00,,Mike Beer Transport Ltd,BEE006,Operational Services,Revenue,Direct Transport Costs,Vehicle Management,,
http://statistics.data.gov.uk/search?search=E07000114,Thanet District Council,13/03/2018,449545,9010.00,,Modern Mindset Ltd,MOD004,Corporate Governance,Revenue,Communications & Computing,ICT,,
http://statistics.data.gov.uk/search?search=E07000114,Thanet District Council,13/03/2018,449772,69.16,,Mr Darren Osborne,OSB008,Community Services,Revenue,Cleaning & Domestic Supplies,Cleaning And Janitorial,,
http://statistics.data.gov.uk/search?search=E07000114,Thanet District Council,13/03/2018,449772,398.34,,Mr Darren Osborne,OSB008,Corporate Governance,Revenue,Cleaning & Domestic Supplies,Cleaning And Janitorial,,
http://statistics.data.gov.uk/search?search=E07000114,Thanet District Council,13/03/2018,449772,40.00,,Mr Darren Osborne,OSB008,Operational Services,Revenue,Cleaning & Domestic Supplies,Cleaning And Janitorial,,
http://statistics.data.gov.uk/search?search=E07000114,Thanet District Council,13/03/2018,449120,6188.00,,Netcall Telecom Ltd,NET013,East Kent Shared Services,Revenue,Communications & Computing,ICT,,
http://statistics.data.gov.uk/search?search=E07000114,Thanet District Council,13/03/2018,449542,724.88,,Ohuk Limited,OHU001,Operational Services,Revenue,Agency Staff,Human Resources,,
http://statistics.data.gov.uk/search?search=E07000114,Thanet District Council,13/03/2018,449385,9600.00,,One 51 Es Plastics (Uk) Limited,ONE006,Operational Services,Revenue,"Equip, Furniture And Materials",Environmental Services,,
http://statistics.data.gov.uk/search?search=E07000114,Thanet District Council,13/03/2018,449386,4851.00,,One 51 Es Plastics (Uk) Limited,ONE006,Operational Services,Revenue,"Equip, Furniture And Materials",Environmental Services,,
http://statistics.data.gov.uk/search?search=E07000114,Thanet District Council,13/03/2018,449539,272.00,,Orbital Net Ltd,ORB008,Corporate Resources and S151,Revenue,Communications & Computing,ICT,,
http://statistics.data.gov.uk/search?search=E07000114,Thanet District Council,13/03/2018,448759,431.80,,Posturite Ltd,POS010,East Kent Shared Services,Revenue,"Print, Stat And Gen Off Exps",Health And Safety,,
http://statistics.data.gov.uk/search?search=E07000114,Thanet District Council,13/03/2018,449092,1500.00,,Powell Williams Llp,POW022,Operational Services,Revenue,"Repairs,  Alter & Mtce - Build",Construction-Repair And Maint,,
http://statistics.data.gov.uk/search?search=E07000114,Thanet District Council,13/03/2018,449399,662.62,,Premier Paper Group Limited,PRE035,Corporate Governance,Revenue,"Print, Stat And Gen Off Exps",Stationery,,
http://statistics.data.gov.uk/search?search=E07000114,Thanet District Council,13/03/2018,449410,24021.26,,Profile Security Services Limited,PRO018,Operational Services,Revenue,Services,Facilities And Mangement Serv,,
http://statistics.data.gov.uk/search?search=E07000114,Thanet District Council,13/03/2018,449411,900.98,,Profile Security Services Limited,PRO018,Operational Services,Revenue,Services,Facilities And Mangement Serv,,
http://statistics.data.gov.uk/search?search=E07000114,Thanet District Council,13/03/2018,449461,490.00,,R Cannon,CAN007,Operational Services,Revenue,Services,Maritime Services,,
http://statistics.data.gov.uk/search?search=E07000114,Thanet District Council,13/03/2018,449186,721.50,,R S S (Wessex) Limited,RSS002,Operational Services,Revenue,Agency Staff,Human Resources,,
http://statistics.data.gov.uk/search?search=E07000114,Thanet District Council,13/03/2018,450006,1100.00,,REDACTED PERSONAL DATA,N/A,Community Services,Revenue,Grants & Subscriptions,Rent Allowances,,
http://statistics.data.gov.uk/search?search=E07000114,Thanet District Council,13/03/2018,449554,7180.00,,Reed Business Information Ltd,REE002,Corporate Governance,Revenue,Miscellaneous Expenses,Facilities And Mangement Serv,,
http://statistics.data.gov.uk/search?search=E07000114,Thanet District Council,13/03/2018,449679,850.00,,Rupert Beloff,BEL023,Corporate Governance,Revenue,Services,Legal Services,,
http://statistics.data.gov.uk/search?search=E07000114,Thanet District Council,13/03/2018,443017,440.30,,Securitas Security Services (Uk) Ltd,SEC019,Corporate Governance,Revenue,Services,Facilities And Mangement Serv,,
http://statistics.data.gov.uk/search?search=E07000114,Thanet District Council,13/03/2018,444782,415.83,,Securitas Security Services (Uk) Ltd,SEC019,Corporate Governance,Revenue,Services,Facilities And Mangement Serv,,
http://statistics.data.gov.uk/search?search=E07000114,Thanet District Council,13/03/2018,448952,428.05,,Securitas Security Services (Uk) Ltd,SEC019,Corporate Governance,Revenue,Services,Facilities And Mangement Serv,,
http://statistics.data.gov.uk/search?search=E07000114,Thanet District Council,13/03/2018,449460,940.70,,Sellick Partnership Ltd,SEL011,Corporate Governance,Revenue,Services,Human Resources,,
http://statistics.data.gov.uk/search?search=E07000114,Thanet District Council,13/03/2018,449530,1917.00,,Sellick Partnership Ltd,SEL011,Corporate Governance,Revenue,Services,Human Resources,,
http://statistics.data.gov.uk/search?search=E07000114,Thanet District Council,13/03/2018,449535,940.70,,Sellick Partnership Ltd,SEL011,Corporate Governance,Revenue,Services,Human Resources,,
http://statistics.data.gov.uk/search?search=E07000114,Thanet District Council,13/03/2018,449684,308.07,,Sellick Partnership Ltd,SEL011,Corporate Governance,Revenue,Services,Human Resources,,
http://statistics.data.gov.uk/search?search=E07000114,Thanet District Council,13/03/2018,449911,1917.00,,Sellick Partnership Ltd,SEL011,Corporate Governance,Revenue,Services,Human Resources,,
http://statistics.data.gov.uk/search?search=E07000114,Thanet District Council,13/03/2018,449902,2841.31,,Shepway District Council,SHE001,Operational Services,Revenue,Services,Various Cats-Public Sector,,
http://statistics.data.gov.uk/search?search=E07000114,Thanet District Council,13/03/2018,449989,9446.93,,South East Adaptations Limited,SOU026,Corporate Resources and S151,Balance Sheet,Capital Exp-Non Council Assets,Grants,,
http://statistics.data.gov.uk/search?search=E07000114,Thanet District Council,13/03/2018,447493,1467.64,,Southern Electric,SEL007,Corporate Governance,Revenue,Energy Costs,Utilities,,
http://statistics.data.gov.uk/search?search=E07000114,Thanet District Council,13/03/2018,449482,2182.28,,Southern Electric,SEL007,Operational Services,Revenue,Energy Costs,Utilities,,
http://statistics.data.gov.uk/search?search=E07000114,Thanet District Council,13/03/2018,449830,-1467.64,,Southern Electric,SEL007,Corporate Governance,Revenue,Energy Costs,Utilities,,
http://statistics.data.gov.uk/search?search=E07000114,Thanet District Council,13/03/2018,449846,380.23,,Southern Electric,SEL007,Operational Services,Revenue,Energy Costs,Utilities,,
http://statistics.data.gov.uk/search?search=E07000114,Thanet District Council,13/03/2018,449863,334.76,,Southern Electric,SEL007,Operational Services,Revenue,Energy Costs,Utilities,,
http://statistics.data.gov.uk/search?search=E07000114,Thanet District Council,13/03/2018,449916,214.10,,Standfast Burglar Alarm Co (Ek) Ltd,STA003,Operational Services,Revenue,"Repairs,  Alter & Mtce - Build",Facilities And Mangement Serv,,
http://statistics.data.gov.uk/search?search=E07000114,Thanet District Council,13/03/2018,449526,596.00,,Streetmaster (S.Wales) Limited,STR001,Operational Services,Revenue,"Equip, Furniture And Materials",Highway Equipment And Material,,
http://statistics.data.gov.uk/search?search=E07000114,Thanet District Council,13/03/2018,449082,222.68,,Total Supplies Ltd,TOT009,Corporate Resources and S151,Revenue,Cleaning & Domestic Supplies,Cleaning And Janitorial,,
http://statistics.data.gov.uk/search?search=E07000114,Thanet District Council,13/03/2018,449425,5450.00,,Townsends Engineering Ltd,TOW016,Corporate Resources and S151,Balance Sheet,Other Land And Buildings-Hra,Construction-Repair And Maint,,
http://statistics.data.gov.uk/search?search=E07000114,Thanet District Council,13/03/2018,449544,12008.56,,Townsends Engineering Ltd,TOW016,Operational Services,Revenue,"Repairs,  Alter & Mtce - Build",Construction-Repair And Maint,,
http://statistics.data.gov.uk/search?search=E07000114,Thanet District Council,13/03/2018,450000,6817.00,,Trueden Disability Adaptations Ltd,TRU012,Corporate Resources and S151,Balance Sheet,Capital Exp-Non Council Assets,Grants,,
http://statistics.data.gov.uk/search?search=E07000114,Thanet District Council,13/03/2018,449163,405.10,,W G Burbridge,BUR016,Operational Services,Revenue,"Equip, Furniture And Materials",Building Construction Material,,
http://statistics.data.gov.uk/search?search=E07000114,Thanet District Council,13/03/2018,449164,976.39,,W G Burbridge,BUR016,Operational Services,Revenue,"Repairs,  Alter & Mtce - Build",Building Construction Material,,
http://statistics.data.gov.uk/search?search=E07000114,Thanet District Council,13/03/2018,449167,374.46,,W G Burbridge,BUR016,Operational Services,Revenue,"Repairs,  Alter & Mtce - Build",Building Construction Material,,
http://statistics.data.gov.uk/search?search=E07000114,Thanet District Council,13/03/2018,449118,323.34,,Xpress Software Solutions Ltd,XPR002,Corporate Governance,Revenue,Expenses,ICT,,
http://statistics.data.gov.uk/search?search=E07000114,Thanet District Council,14/03/2018,448668,5392.50,,Business Computer Solutions Ltd,BUS002,Corporate Governance,Revenue,Communications & Computing,ICT,,
http://statistics.data.gov.uk/search?search=E07000114,Thanet District Council,14/03/2018,448978,7521.74,,Hr Go (Kent) Ltd,HRG001,Operational Services,Revenue,Agency Staff,Human Resources,,
http://statistics.data.gov.uk/search?search=E07000114,Thanet District Council,14/03/2018,448983,604.95,,Loomis Uk Ltd,LOO002,Operational Services,Revenue,Services,Financial Services,,
http://statistics.data.gov.uk/search?search=E07000114,Thanet District Council,14/03/2018,449104,586.83,,Margate Harbour Arm Ltd,MAR076,Community Services,Revenue,Services,Various Categories,,
http://statistics.data.gov.uk/search?search=E07000114,Thanet District Council,14/03/2018,449057,296.10,,Morgan Jones Ltd,MOR001,Corporate Governance,Revenue,Agency Staff,Human Resources,,
http://statistics.data.gov.uk/search?search=E07000114,Thanet District Council,14/03/2018,449889,907.20,,Securitas Security Services (Uk) Ltd,SEC019,Operational Services,Revenue,Agency Staff,Facilities And Mangement Serv,,
http://statistics.data.gov.uk/search?search=E07000114,Thanet District Council,14/03/2018,449075,940.70,,Sellick Partnership Ltd,SEL011,Corporate Governance,Revenue,Services,Human Resources,,
http://statistics.data.gov.uk/search?search=E07000114,Thanet District Council,14/03/2018,449078,308.07,,Sellick Partnership Ltd,SEL011,Corporate Governance,Revenue,Services,Human Resources,,
http://statistics.data.gov.uk/search?search=E07000114,Thanet District Council,14/03/2018,449152,2556.00,,Sellick Partnership Ltd,SEL011,Corporate Governance,Revenue,Services,Human Resources,,
http://statistics.data.gov.uk/search?search=E07000114,Thanet District Council,14/03/2018,448756,403.62,,Signway Supplies (Datchet) Limited,SIG013,Operational Services,Revenue,"Repairs,  Alter & Mtce - Build",Highway Equipment And Material,,
http://statistics.data.gov.uk/search?search=E07000114,Thanet District Council,14/03/2018,448944,5643.45,,Standage & Co Limited,STA058,Corporate Resources and S151,Balance Sheet,Council Dwellings,Construction-Repair And Maint,,
http://statistics.data.gov.uk/search?search=E07000114,Thanet District Council,14/03/2018,449532,299.00,,The Coach Tourism Assoc Limited,COA019,Community Services,Revenue,Expenses,Financial Services,,
http://statistics.data.gov.uk/search?search=E07000114,Thanet District Council,14/03/2018,448991,1053.00,,The Safe Shop Limited,SAF022,Operational Services,Revenue,Fixtures & Fittings,Facilities And Mangement Serv,,
http://statistics.data.gov.uk/search?search=E07000114,Thanet District Council,14/03/2018,449190,1800.00,,Visit Kent Ltd,VIS005,Community Services,Revenue,Services,Arts And Leisure Services,,
http://statistics.data.gov.uk/search?search=E07000114,Thanet District Council,15/03/2018,449128,3954.90,,Cripps Llp,CRI011,Corporate Resources and S151,Revenue,Services,Legal Services,,
http://statistics.data.gov.uk/search?search=E07000114,Thanet District Council,15/03/2018,449127,8360.69,,Hipperson Builders (M & E) Limited,HIP002,Corporate Resources and S151,Balance Sheet,Council Dwellings,Construction-Repair And Maint,,
http://statistics.data.gov.uk/search?search=E07000114,Thanet District Council,15/03/2018,449070,1193.25,,Hr Go (Kent) Ltd,HRG001,Operational Services,Revenue,Agency Staff,Human Resources,,
http://statistics.data.gov.uk/search?search=E07000114,Thanet District Council,15/03/2018,448654,1800.00,,Independent Reviews Ltd,IND013,Community Services,Revenue,Services,Consultancy,,
http://statistics.data.gov.uk/search?search=E07000114,Thanet District Council,15/03/2018,450242,1160.00,,Royal Town Planning Institute,ROY002,Community Services,Revenue,Services,Human Resources,,
http://statistics.data.gov.uk/search?search=E07000114,Thanet District Council,15/03/2018,450015,258.41,,Scottish Water Business Stream Ltd,SCO019,Operational Services,Revenue,Water Services,Utilities,,
http://statistics.data.gov.uk/search?search=E07000114,Thanet District Council,15/03/2018,450123,1824.63,,Scottish Water Business Stream Ltd,SCO019,Operational Services,Revenue,Water Services,Utilities,,
http://statistics.data.gov.uk/search?search=E07000114,Thanet District Council,15/03/2018,450008,467.85,,Southern Electric,SEL007,Corporate Governance,Revenue,Energy Costs,Utilities,,
http://statistics.data.gov.uk/search?search=E07000114,Thanet District Council,15/03/2018,450161,840.00,,Wilkin Chapman Llp,WIL057,Corporate Governance,Revenue,Services,Legal Services,,
http://statistics.data.gov.uk/search?search=E07000114,Thanet District Council,19/03/2018,N/A,308.85,,REDACTED PERSONAL DATA,N/A,Community Services,Revenue,Car Allowances,Non Trade Payee,,
http://statistics.data.gov.uk/search?search=E07000114,Thanet District Council,19/03/2018,N/A,251.54,,REDACTED PERSONAL DATA,N/A,Community Services,Revenue,Car Allowances,Non Trade Payee,,
http://statistics.data.gov.uk/search?search=E07000114,Thanet District Council,19/03/2018,N/A,331.14,,REDACTED PERSONAL DATA,N/A,Community Services,Revenue,Car Allowances,Non Trade Payee,,
http://statistics.data.gov.uk/search?search=E07000114,Thanet District Council,19/03/2018,N/A,278.00,,REDACTED PERSONAL DATA,N/A,Community Services,Revenue,Public Transport,Non Trade Payee,,
http://statistics.data.gov.uk/search?search=E07000114,Thanet District Council,20/03/2018,449949,445.00,,A& C Pumps Ltd,ACP001,Operational Services,Revenue,"Equip, Furniture And Materials",Building Construction Material,,
http://statistics.data.gov.uk/search?search=E07000114,Thanet District Council,20/03/2018,449783,392.00,,All Access Ltd,ALL031,Corporate Resources and S151,Balance Sheet,Rechargeable Works,Building Construction Material,,
http://statistics.data.gov.uk/search?search=E07000114,Thanet District Council,20/03/2018,449793,616.00,,Aquasoftukcom Limited,AQU008,Operational Services,Revenue,"Equip, Furniture And Materials",Maritime Services,,
http://statistics.data.gov.uk/search?search=E07000114,Thanet District Council,20/03/2018,450516,8390.00,,Ascendit Lifts Ltd,ASC001,Corporate Resources and S151,Balance Sheet,Capital Exp-Non Council Assets,Grants,,
http://statistics.data.gov.uk/search?search=E07000114,Thanet District Council,20/03/2018,450477,276.20,,Aspli Safety Limited,ASP005,Operational Services,Revenue,"Equip, Furniture And Materials",Maritime Services,,
http://statistics.data.gov.uk/search?search=E07000114,Thanet District Council,20/03/2018,449680,21157.54,,Axis Europe Plc,AXI001,Corporate Resources and S151,Balance Sheet,Council Dwellings,Construction-Repair And Maint,,
http://statistics.data.gov.uk/search?search=E07000114,Thanet District Council,20/03/2018,450322,300.00,,Barnes Marsland Solicitors Ltd,BAR061,East Kent Shared Services,Revenue,Services,Legal Services,,
http://statistics.data.gov.uk/search?search=E07000114,Thanet District Council,20/03/2018,450311,7141.00,,Blue Fox Technology Limited,BLU015,Community Services,Revenue,Communications & Computing,ICT,,
http://statistics.data.gov.uk/search?search=E07000114,Thanet District Council,20/03/2018,449971,680.00,,Bowman Maintenance Contracting,BMC001,Operational Services,Revenue,"Repairs,  Alter & Mtce - Build",Building Construction Material,,
http://statistics.data.gov.uk/search?search=E07000114,Thanet District Council,20/03/2018,450325,235.00,,Bt Payment Services Ltd,BTE003,Operational Services,Revenue,Communications & Computing,ICT,,
http://statistics.data.gov.uk/search?search=E07000114,Thanet District Council,20/03/2018,449899,349.60,,Canon (Uk) Ltd,CAN021,Community Services,Revenue,"Equip, Furniture And Materials",Facilities And Mangement Serv,,
http://statistics.data.gov.uk/search?search=E07000114,Thanet District Council,20/03/2018,449967,747.33,,Canon (Uk) Ltd,CAN021,Corporate Governance,Revenue,"Equip, Furniture And Materials",Facilities And Mangement Serv,,
http://statistics.data.gov.uk/search?search=E07000114,Thanet District Council,20/03/2018,449904,45159.30,,Canterbury City Council,CAN004,East Kent Shared Services,Revenue,Grants & Subscriptions,Various Cats-Public Sector,,
http://statistics.data.gov.uk/search?search=E07000114,Thanet District Council,20/03/2018,450153,545.00,,Cave Creative Limited,CAV003,Corporate Resources and S151,Revenue,Services,Facilities And Mangement Serv,,
http://statistics.data.gov.uk/search?search=E07000114,Thanet District Council,20/03/2018,450154,675.00,,Cave Creative Limited,CAV003,Corporate Resources and S151,Revenue,Services,Facilities And Mangement Serv,,
http://statistics.data.gov.uk/search?search=E07000114,Thanet District Council,20/03/2018,449800,4885.00,,Cipfa Business Ltd,CIP008,Corporate Resources and S151,Revenue,Grants & Subscriptions,Financial Services,,
http://statistics.data.gov.uk/search?search=E07000114,Thanet District Council,20/03/2018,450238,9515.00,,Cleanparkuk Limited,CLE022,Operational Services,Revenue,"Repairs,  Alter & Mtce - Build",Cleaning And Janitorial,,
http://statistics.data.gov.uk/search?search=E07000114,Thanet District Council,20/03/2018,450432,957.60,,Cripps Llp,CRI011,Corporate Resources and S151,Revenue,Services,Legal Services,,
http://statistics.data.gov.uk/search?search=E07000114,Thanet District Council,20/03/2018,450195,769.50,,Csl Power Systems Ltd,CSL002,Operational Services,Revenue,"Repairs,  Alter & Mtce - Build",Building Construction Material,,
http://statistics.data.gov.uk/search?search=E07000114,Thanet District Council,20/03/2018,449419,292.62,,Dennis Eagle Ltd,DEN005,Operational Services,Revenue,Direct Transport Costs,Vehicle Management,,
http://statistics.data.gov.uk/search?search=E07000114,Thanet District Council,20/03/2018,450235,514.48,,Dennis Eagle Ltd,DEN005,Operational Services,Revenue,Direct Transport Costs,Vehicle Management,,
http://statistics.data.gov.uk/search?search=E07000114,Thanet District Council,20/03/2018,450510,4900.00,,Dolphin Lifts Kent,DOL003,Corporate Resources and S151,Balance Sheet,Capital Exp-Non Council Assets,Grants,,
http://statistics.data.gov.uk/search?search=E07000114,Thanet District Council,20/03/2018,450158,133.99,,E Saunders Margate Ltd,SAU001,Community Services,Revenue,"Repairs,  Alter & Mtce - Build",Construction-Repair And Maint,,
http://statistics.data.gov.uk/search?search=E07000114,Thanet District Council,20/03/2018,450158,117.50,,E Saunders Margate Ltd,SAU001,Corporate Governance,Revenue,"Repairs,  Alter & Mtce - Build",Construction-Repair And Maint,,
http://statistics.data.gov.uk/search?search=E07000114,Thanet District Council,20/03/2018,450159,332.14,,E Saunders Margate Ltd,SAU001,Corporate Governance,Revenue,"Repairs,  Alter & Mtce - Build",Construction-Repair And Maint,,
http://statistics.data.gov.uk/search?search=E07000114,Thanet District Council,20/03/2018,450159,27.10,,E Saunders Margate Ltd,SAU001,Operational Services,Revenue,"Repairs,  Alter & Mtce - Build",Construction-Repair And Maint,,
http://statistics.data.gov.uk/search?search=E07000114,Thanet District Council,20/03/2018,450321,521.28,,E Saunders Margate Ltd,SAU001,Operational Services,Revenue,"Repairs,  Alter & Mtce - Build",Construction-Repair And Maint,,
http://statistics.data.gov.uk/search?search=E07000114,Thanet District Council,20/03/2018,450323,1424.06,,E Saunders Margate Ltd,SAU001,Operational Services,Revenue,"Repairs,  Alter & Mtce - Build",Construction-Repair And Maint,,
http://statistics.data.gov.uk/search?search=E07000114,Thanet District Council,20/03/2018,449573,2369.50,,Egbert H Taylor & Company Ltd,TAY005,Operational Services,Revenue,"Equip, Furniture And Materials",Environmental Services,,
http://statistics.data.gov.uk/search?search=E07000114,Thanet District Council,20/03/2018,450498,334.84,,Electoral Reform Services,ELE010,Corporate Governance,Revenue,"Print, Stat And Gen Off Exps",Facilities And Mangement Serv,,
http://statistics.data.gov.uk/search?search=E07000114,Thanet District Council,20/03/2018,449687,1266.00,,Estuary Services Ltd,EST002,Operational Services,Revenue,Cont Hire & Operating Lease,Maritime Services,,
http://statistics.data.gov.uk/search?search=E07000114,Thanet District Council,20/03/2018,449403,5617.80,,F M Conway Ltd,CON043,Corporate Resources and S151,Balance Sheet,Other Land And Buildings-Hra,Construction-Repair And Maint,,
http://statistics.data.gov.uk/search?search=E07000114,Thanet District Council,20/03/2018,449403,1957.36,,F M Conway Ltd,CON043,Operational Services,Revenue,"Repairs,  Alter & Mtce - Build",Construction-Repair And Maint,,
http://statistics.data.gov.uk/search?search=E07000114,Thanet District Council,20/03/2018,450511,1478.08,,Family Mosaic Housing,FAM001,Corporate Resources and S151,Balance Sheet,Capital Exp-Non Council Assets,Housing Management,,
http://statistics.data.gov.uk/search?search=E07000114,Thanet District Council,20/03/2018,450513,993.71,,Family Mosaic Housing,FAM001,Corporate Resources and S151,Balance Sheet,Capital Exp-Non Council Assets,Housing Management,,
http://statistics.data.gov.uk/search?search=E07000114,Thanet District Council,20/03/2018,449787,375.18,,Farrer Barnes Limited,FAR012,Corporate Resources and S151,Revenue,Agency Staff,Human Resources,,
http://statistics.data.gov.uk/search?search=E07000114,Thanet District Council,20/03/2018,450227,639.34,,Farrer Barnes Limited,FAR012,Corporate Resources and S151,Revenue,Agency Staff,Human Resources,,
http://statistics.data.gov.uk/search?search=E07000114,Thanet District Council,20/03/2018,449489,400.00,,Florence Court Hotel Ltd,FLO009,Community Services,Revenue,Services,Housing Management,,
http://statistics.data.gov.uk/search?search=E07000114,Thanet District Council,20/03/2018,449490,1085.00,,Florence Court Hotel Ltd,FLO009,Community Services,Revenue,Services,Housing Management,,
http://statistics.data.gov.uk/search?search=E07000114,Thanet District Council,20/03/2018,449491,420.00,,Florence Court Hotel Ltd,FLO009,Community Services,Revenue,Services,Housing Management,,
http://statistics.data.gov.uk/search?search=E07000114,Thanet District Council,20/03/2018,449492,1085.00,,Florence Court Hotel Ltd,FLO009,Community Services,Revenue,Services,Housing Management,,
http://statistics.data.gov.uk/search?search=E07000114,Thanet District Council,20/03/2018,449493,1860.00,,Florence Court Hotel Ltd,FLO009,Community Services,Revenue,Services,Housing Management,,
http://statistics.data.gov.uk/search?search=E07000114,Thanet District Council,20/03/2018,449494,1080.00,,Florence Court Hotel Ltd,FLO009,Community Services,Revenue,Services,Housing Management,,
http://statistics.data.gov.uk/search?search=E07000114,Thanet District Council,20/03/2018,450128,250.00,,Florence Court Hotel Ltd,FLO009,Community Services,Revenue,Services,Housing Management,,
http://statistics.data.gov.uk/search?search=E07000114,Thanet District Council,20/03/2018,450129,900.00,,Florence Court Hotel Ltd,FLO009,Community Services,Revenue,Services,Housing Management,,
http://statistics.data.gov.uk/search?search=E07000114,Thanet District Council,20/03/2018,450130,980.00,,Florence Court Hotel Ltd,FLO009,Community Services,Revenue,Services,Housing Management,,
http://statistics.data.gov.uk/search?search=E07000114,Thanet District Council,20/03/2018,450131,980.00,,Florence Court Hotel Ltd,FLO009,Community Services,Revenue,Services,Housing Management,,
http://statistics.data.gov.uk/search?search=E07000114,Thanet District Council,20/03/2018,450132,2040.00,,Florence Court Hotel Ltd,FLO009,Community Services,Revenue,Services,Housing Management,,
http://statistics.data.gov.uk/search?search=E07000114,Thanet District Council,20/03/2018,450134,385.00,,Florence Court Hotel Ltd,FLO009,Community Services,Revenue,Services,Housing Management,,
http://statistics.data.gov.uk/search?search=E07000114,Thanet District Council,20/03/2018,450135,330.00,,Florence Court Hotel Ltd,FLO009,Community Services,Revenue,Services,Housing Management,,
http://statistics.data.gov.uk/search?search=E07000114,Thanet District Council,20/03/2018,450136,300.00,,Florence Court Hotel Ltd,FLO009,Community Services,Revenue,Services,Housing Management,,
http://statistics.data.gov.uk/search?search=E07000114,Thanet District Council,20/03/2018,450137,330.00,,Florence Court Hotel Ltd,FLO009,Community Services,Revenue,Services,Housing Management,,
http://statistics.data.gov.uk/search?search=E07000114,Thanet District Council,20/03/2018,450139,245.00,,Florence Court Hotel Ltd,FLO009,Community Services,Revenue,Services,Housing Management,,
http://statistics.data.gov.uk/search?search=E07000114,Thanet District Council,20/03/2018,450143,210.00,,Florence Court Hotel Ltd,FLO009,Community Services,Revenue,Services,Housing Management,,
http://statistics.data.gov.uk/search?search=E07000114,Thanet District Council,20/03/2018,450144,245.00,,Florence Court Hotel Ltd,FLO009,Community Services,Revenue,Services,Housing Management,,
http://statistics.data.gov.uk/search?search=E07000114,Thanet District Council,20/03/2018,450145,245.00,,Florence Court Hotel Ltd,FLO009,Community Services,Revenue,Services,Housing Management,,
http://statistics.data.gov.uk/search?search=E07000114,Thanet District Council,20/03/2018,450147,245.00,,Florence Court Hotel Ltd,FLO009,Community Services,Revenue,Services,Housing Management,,
http://statistics.data.gov.uk/search?search=E07000114,Thanet District Council,20/03/2018,450204,750.00,,Forecourt Installation Services Ltd,FOR021,Operational Services,Revenue,"Equip, Furniture And Materials",Maritime Services,,
http://statistics.data.gov.uk/search?search=E07000114,Thanet District Council,20/03/2018,450191,906.50,,Frontier-Pitts Limited,FRO001,Operational Services,Revenue,"Equip, Furniture And Materials",Building Construction Material,,
http://statistics.data.gov.uk/search?search=E07000114,Thanet District Council,20/03/2018,450518,7804.50,,Furley Page Solicitors,FUR003,Corporate Resources and S151,Balance Sheet,Capital Exp-Non Council Assets,Grants,,
http://statistics.data.gov.uk/search?search=E07000114,Thanet District Council,20/03/2018,450519,13435.50,,Furley Page Solicitors,FUR003,Corporate Resources and S151,Balance Sheet,Capital Exp-Non Council Assets,Grants,,
http://statistics.data.gov.uk/search?search=E07000114,Thanet District Council,20/03/2018,449797,1500.00,,Gatherwell Ltd,GAT003,Corporate Resources and S151,Revenue,Services,Financial Services,,
http://statistics.data.gov.uk/search?search=E07000114,Thanet District Council,20/03/2018,450232,465.00,,Guard It Limited,GUA008,Operational Services,Revenue,Services,Facilities And Mangement Serv,,
http://statistics.data.gov.uk/search?search=E07000114,Thanet District Council,20/03/2018,450437,3425.00,,Hartwell Architects,HAR075,Corporate Resources and S151,Balance Sheet,Council Dwellings,Construction-Repair And Maint,,
http://statistics.data.gov.uk/search?search=E07000114,Thanet District Council,20/03/2018,449441,797.50,,Hays Specialist Recruitment Ltd,HAY020,Community Services,Revenue,Agency Staff,Human Resources,,
http://statistics.data.gov.uk/search?search=E07000114,Thanet District Council,20/03/2018,449442,340.75,,Hays Specialist Recruitment Ltd,HAY020,Community Services,Revenue,Agency Staff,Human Resources,,
http://statistics.data.gov.uk/search?search=E07000114,Thanet District Council,20/03/2018,449443,841.00,,Hays Specialist Recruitment Ltd,HAY020,Community Services,Revenue,Agency Staff,Human Resources,,
http://statistics.data.gov.uk/search?search=E07000114,Thanet District Council,20/03/2018,449894,725.00,,Hays Specialist Recruitment Ltd,HAY020,Community Services,Revenue,Agency Staff,Human Resources,,
http://statistics.data.gov.uk/search?search=E07000114,Thanet District Council,20/03/2018,450243,5381.28,,Hays Specialist Recruitment Ltd,HAY020,Community Services,Revenue,Agency Staff,Human Resources,,
http://statistics.data.gov.uk/search?search=E07000114,Thanet District Council,20/03/2018,449536,1545.00,,High Five Training Limited,HIG009,Operational Services,Revenue,Services,Human Resources,,
http://statistics.data.gov.uk/search?search=E07000114,Thanet District Council,20/03/2018,449525,7298.45,,Hr Go (Kent) Ltd,HRG001,Operational Services,Revenue,Agency Staff,Human Resources,,
http://statistics.data.gov.uk/search?search=E07000114,Thanet District Council,20/03/2018,449741,449.55,,Hr Go (Kent) Ltd,HRG001,Operational Services,Revenue,Agency Staff,Human Resources,,
http://statistics.data.gov.uk/search?search=E07000114,Thanet District Council,20/03/2018,449741,346.14,,Hr Go (Kent) Ltd,HRG001,Operational Services,Revenue,Services,Human Resources,,
http://statistics.data.gov.uk/search?search=E07000114,Thanet District Council,20/03/2018,449742,816.75,,Hr Go (Kent) Ltd,HRG001,Operational Services,Revenue,Agency Staff,Human Resources,,
http://statistics.data.gov.uk/search?search=E07000114,Thanet District Council,20/03/2018,449746,973.10,,Hr Go (Kent) Ltd,HRG001,Operational Services,Revenue,Agency Staff,Human Resources,,
http://statistics.data.gov.uk/search?search=E07000114,Thanet District Council,20/03/2018,449907,6056.41,,Hr Go (Kent) Ltd,HRG001,Operational Services,Revenue,Agency Staff,Human Resources,,
http://statistics.data.gov.uk/search?search=E07000114,Thanet District Council,20/03/2018,450185,973.10,,Hr Go (Kent) Ltd,HRG001,Operational Services,Revenue,Agency Staff,Human Resources,,
http://statistics.data.gov.uk/search?search=E07000114,Thanet District Council,20/03/2018,450186,894.95,,Hr Go (Kent) Ltd,HRG001,Operational Services,Revenue,Agency Staff,Human Resources,,
http://statistics.data.gov.uk/search?search=E07000114,Thanet District Council,20/03/2018,449749,330.00,,Jid Group Services,JID002,Operational Services,Revenue,"Repairs,  Alter & Mtce - Build",Environmental Services,,
http://statistics.data.gov.uk/search?search=E07000114,Thanet District Council,20/03/2018,450507,633.50,,John Gale,GAL001,Corporate Resources and S151,Balance Sheet,Capital Exp-Non Council Assets,Grants,,
http://statistics.data.gov.uk/search?search=E07000114,Thanet District Council,20/03/2018,450509,1270.50,,John Gale,GAL001,Corporate Resources and S151,Balance Sheet,Capital Exp-Non Council Assets,Grants,,
http://statistics.data.gov.uk/search?search=E07000114,Thanet District Council,20/03/2018,450515,814.00,,John Gale,GAL001,Corporate Resources and S151,Balance Sheet,Capital Exp-Non Council Assets,Grants,,
http://statistics.data.gov.uk/search?search=E07000114,Thanet District Council,20/03/2018,449739,273.50,,Keith Peattie Associates,KEI002,Corporate Resources and S151,Balance Sheet,Council Dwellings,Construction-Repair And Maint,,
http://statistics.data.gov.uk/search?search=E07000114,Thanet District Council,20/03/2018,450492,267237.00,,Kent & Medway Towns Fire Authority,KMT001,Corporate Resources and S151,Balance Sheet,Collection Fund - Preceptors,Various Cats-Public Sector,,
http://statistics.data.gov.uk/search?search=E07000114,Thanet District Council,20/03/2018,450198,2024.27,,Kent County Council,KCC002,Corporate Governance,Revenue,Rents,Various Cats-Public Sector,,
http://statistics.data.gov.uk/search?search=E07000114,Thanet District Council,20/03/2018,450494,4273992.00,,Kent County Council,KCC022,Corporate Resources and S151,Balance Sheet,Collection Fund - Preceptors,Various Cats-Public Sector,,
http://statistics.data.gov.uk/search?search=E07000114,Thanet District Council,20/03/2018,450179,4928.61,,Kent County Council (Kcs),KCC003,Operational Services,Revenue,Energy Costs,Facilities And Mangement Serv,,
http://statistics.data.gov.uk/search?search=E07000114,Thanet District Council,20/03/2018,450180,7572.19,,Kent County Council (Kcs),KCC003,Corporate Governance,Revenue,Energy Costs,Facilities And Mangement Serv,,
http://statistics.data.gov.uk/search?search=E07000114,Thanet District Council,20/03/2018,450181,8560.02,,Kent County Council (Kcs),KCC003,Operational Services,Revenue,Energy Costs,Facilities And Mangement Serv,,
http://statistics.data.gov.uk/search?search=E07000114,Thanet District Council,20/03/2018,450194,12222.59,,Kent County Council (Kcs),KCC003,Corporate Governance,Revenue,Energy Costs,Facilities And Mangement Serv,,
http://statistics.data.gov.uk/search?search=E07000114,Thanet District Council,20/03/2018,450207,355.77,,Kent County Council (Kcs),KCC003,Corporate Governance,Revenue,Energy Costs,Facilities And Mangement Serv,,
http://statistics.data.gov.uk/search?search=E07000114,Thanet District Council,20/03/2018,450208,2013.66,,Kent County Council (Kcs),KCC003,Corporate Governance,Revenue,Energy Costs,Facilities And Mangement Serv,,
http://statistics.data.gov.uk/search?search=E07000114,Thanet District Council,20/03/2018,450209,1791.42,,Kent County Council (Kcs),KCC003,Operational Services,Revenue,Energy Costs,Facilities And Mangement Serv,,
http://statistics.data.gov.uk/search?search=E07000114,Thanet District Council,20/03/2018,450211,526.79,,Kent County Council (Kcs),KCC003,Operational Services,Revenue,Energy Costs,Facilities And Mangement Serv,,
http://statistics.data.gov.uk/search?search=E07000114,Thanet District Council,20/03/2018,450212,1655.07,,Kent County Council (Kcs),KCC003,Community Services,Revenue,Energy Costs,Facilities And Mangement Serv,,
http://statistics.data.gov.uk/search?search=E07000114,Thanet District Council,20/03/2018,450213,1314.16,,Kent County Council (Kcs),KCC003,Operational Services,Revenue,Energy Costs,Facilities And Mangement Serv,,
http://statistics.data.gov.uk/search?search=E07000114,Thanet District Council,20/03/2018,450214,1426.83,,Kent County Council (Kcs),KCC003,Corporate Governance,Revenue,Energy Costs,Facilities And Mangement Serv,,
http://statistics.data.gov.uk/search?search=E07000114,Thanet District Council,20/03/2018,450216,273.49,,Kent County Council (Kcs),KCC003,Operational Services,Revenue,Energy Costs,Facilities And Mangement Serv,,
http://statistics.data.gov.uk/search?search=E07000114,Thanet District Council,20/03/2018,450493,566761.00,,Kent Police & Crime Commissioner,KPA003,Corporate Resources and S151,Balance Sheet,Collection Fund - Preceptors,Various Cats-Public Sector,,
http://statistics.data.gov.uk/search?search=E07000114,Thanet District Council,20/03/2018,449533,2313.52,,Lee Snashfold Crem Man & Consult Ltd,SNA006,Operational Services,Revenue,Agency Staff,Consultancy,,
http://statistics.data.gov.uk/search?search=E07000114,Thanet District Council,20/03/2018,449771,652.90,,Lee Snashfold Crem Man & Consult Ltd,SNA006,Operational Services,Revenue,Agency Staff,Consultancy,,
http://statistics.data.gov.uk/search?search=E07000114,Thanet District Council,20/03/2018,450314,948.70,,Lee Snashfold Crem Man & Consult Ltd,SNA006,Operational Services,Revenue,Agency Staff,Consultancy,,
http://statistics.data.gov.uk/search?search=E07000114,Thanet District Council,20/03/2018,449540,1079.72,,Lobster Van Hire Ltd,LOB001,Operational Services,Revenue,Cont Hire & Operating Lease,Vehicle Management,,
http://statistics.data.gov.uk/search?search=E07000114,Thanet District Council,20/03/2018,450517,700.00,,Lovetts Ramsgate Ltd (Clients),LOV008,Community Services,Revenue,Grants & Subscriptions,Rent Deposits,,
http://statistics.data.gov.uk/search?search=E07000114,Thanet District Council,20/03/2018,449872,18.20,,Lyreco Uk Limited,LYR001,Community Services,Revenue,"Print, Stat And Gen Off Exps",Stationery,,
http://statistics.data.gov.uk/search?search=E07000114,Thanet District Council,20/03/2018,449872,431.40,,Lyreco Uk Limited,LYR001,Operational Services,Revenue,"Print, Stat And Gen Off Exps",Stationery,,
http://statistics.data.gov.uk/search?search=E07000114,Thanet District Council,20/03/2018,450170,937.00,,Lyreco Uk Limited,LYR001,Corporate Governance,Revenue,"Print, Stat And Gen Off Exps",Stationery,,
http://statistics.data.gov.uk/search?search=E07000114,Thanet District Council,20/03/2018,449555,312.00,,Maha Uk Ltd,MAH002,Operational Services,Revenue,"Equip, Furniture And Materials",ICT,,
http://statistics.data.gov.uk/search?search=E07000114,Thanet District Council,20/03/2018,450298,1250.00,,Matt Lewin,LEW014,East Kent Shared Services,Revenue,Services,Legal Services,,
http://statistics.data.gov.uk/search?search=E07000114,Thanet District Council,20/03/2018,449736,684.64,,Mears Ltd,MEA003,Corporate Resources and S151,Balance Sheet,Repairs And Mtce Holding A/C,Construction-Repair And Maint,,
http://statistics.data.gov.uk/search?search=E07000114,Thanet District Council,20/03/2018,449737,4861.39,,Mears Ltd,MEA003,Corporate Resources and S151,Balance Sheet,Repairs And Mtce Holding A/C,Construction-Repair And Maint,,
http://statistics.data.gov.uk/search?search=E07000114,Thanet District Council,20/03/2018,449738,1500.00,,Michael Page Int Recruitment Ltd,PAG008,East Kent Shared Services,Revenue,Agency Staff,Human Resources,,
http://statistics.data.gov.uk/search?search=E07000114,Thanet District Council,20/03/2018,449408,1121.40,,Midland Software Limited,MID013,East Kent Shared Services,Revenue,Communications & Computing,ICT,,
http://statistics.data.gov.uk/search?search=E07000114,Thanet District Council,20/03/2018,449501,225.00,,Mike Beer Transport Ltd,BEE006,Operational Services,Revenue,Direct Transport Costs,Vehicle Management,,
http://statistics.data.gov.uk/search?search=E07000114,Thanet District Council,20/03/2018,449958,4775.00,,Moreton Hayward Ltd,MOR034,Corporate Resources and S151,Balance Sheet,Council Dwellings,Consultancy,,
http://statistics.data.gov.uk/search?search=E07000114,Thanet District Council,20/03/2018,450411,403.20,,Morgan Jones Ltd,MOR001,Corporate Governance,Revenue,Agency Staff,Human Resources,,
http://statistics.data.gov.uk/search?search=E07000114,Thanet District Council,20/03/2018,450231,2548.09,,Mr Philip Woolfe,WOO030,Operational Services,Revenue,Services,Legal Services,,
http://statistics.data.gov.uk/search?search=E07000114,Thanet District Council,20/03/2018,450189,2895.00,,Nagels Uk Ltd,NAG001,Operational Services,Revenue,Miscellaneous Expenses,Facilities And Mangement Serv,,
http://statistics.data.gov.uk/search?search=E07000114,Thanet District Council,20/03/2018,449543,1452.25,,National Express Ltd,NAT010,Community Services,Revenue,Services,Agency Payments,,
http://statistics.data.gov.uk/search?search=E07000114,Thanet District Council,20/03/2018,450465,534.58,,Neopost Ltd,NEO003,Corporate Governance,Revenue,"Print, Stat And Gen Off Exps",Mail Services,,
http://statistics.data.gov.uk/search?search=E07000114,Thanet District Council,20/03/2018,449691,593.40,,Northgate Public Services (Uk) Ltd,NOR018,Corporate Resources and S151,Revenue,Communications & Computing,ICT,,
http://statistics.data.gov.uk/search?search=E07000114,Thanet District Council,20/03/2018,449906,272.42,,Npower Limited,NPO001,Corporate Governance,Revenue,Energy Costs,Utilities,,
http://statistics.data.gov.uk/search?search=E07000114,Thanet District Council,20/03/2018,449571,900.00,,Oak Housing Limited,OAK008,Community Services,Revenue,Services,Housing Management,,
http://statistics.data.gov.uk/search?search=E07000114,Thanet District Council,20/03/2018,450162,840.86,,Ohuk Limited,OHU001,Operational Services,Revenue,Agency Staff,Human Resources,,
http://statistics.data.gov.uk/search?search=E07000114,Thanet District Council,20/03/2018,449802,6805.37,,P & R Installation Company Limited,PRI035,Corporate Resources and S151,Balance Sheet,Repairs And Mtce Holding A/C,Building Construction Material,,
http://statistics.data.gov.uk/search?search=E07000114,Thanet District Council,20/03/2018,449804,889.81,,P & R Installation Company Limited,PRI035,Corporate Resources and S151,Balance Sheet,Repairs And Mtce Holding A/C,Building Construction Material,,
http://statistics.data.gov.uk/search?search=E07000114,Thanet District Council,20/03/2018,449805,24377.50,,P & R Installation Company Limited,PRI035,Corporate Resources and S151,Balance Sheet,Repairs And Mtce Holding A/C,Building Construction Material,,
http://statistics.data.gov.uk/search?search=E07000114,Thanet District Council,20/03/2018,449806,8921.25,,P & R Installation Company Limited,PRI035,Corporate Resources and S151,Balance Sheet,Repairs And Mtce Holding A/C,Building Construction Material,,
http://statistics.data.gov.uk/search?search=E07000114,Thanet District Council,20/03/2018,449809,620.96,,P & R Installation Company Limited,PRI035,Corporate Resources and S151,Balance Sheet,Repairs And Mtce Holding A/C,Building Construction Material,,
http://statistics.data.gov.uk/search?search=E07000114,Thanet District Council,20/03/2018,449811,620.96,,P & R Installation Company Limited,PRI035,Corporate Resources and S151,Balance Sheet,Repairs And Mtce Holding A/C,Building Construction Material,,
http://statistics.data.gov.uk/search?search=E07000114,Thanet District Council,20/03/2018,449877,86360.65,,P & R Installation Company Limited,PRI035,Corporate Resources and S151,Balance Sheet,Repairs And Mtce Holding A/C,Building Construction Material,,
http://statistics.data.gov.uk/search?search=E07000114,Thanet District Council,20/03/2018,450439,350.00,,P D Minibuses,PDM001,Community Services,Revenue,Cont Hire & Operating Lease,Agency Payments,,
http://statistics.data.gov.uk/search?search=E07000114,Thanet District Council,20/03/2018,450495,300.00,,Parry Law,PAR064,Corporate Resources and S151,Revenue,Services,Legal Services,,
http://statistics.data.gov.uk/search?search=E07000114,Thanet District Council,20/03/2018,449792,7950.00,,Penna Plc,PEN008,Corporate Resources and S151,Revenue,Services,Human Resources,,
http://statistics.data.gov.uk/search?search=E07000114,Thanet District Council,20/03/2018,449867,234.60,,Ppg Arch Coatings Uk Ltd,PPG001,Operational Services,Revenue,"Equip, Furniture And Materials",Building Construction Material,,
http://statistics.data.gov.uk/search?search=E07000114,Thanet District Council,20/03/2018,450178,239.01,,Presco Uk Limited,PRE003,Corporate Governance,Revenue,"Print, Stat And Gen Off Exps",Facilities And Mangement Serv,,
http://statistics.data.gov.uk/search?search=E07000114,Thanet District Council,20/03/2018,449813,4668.40,,Probrand Ltd,PRO012,East Kent Shared Services,Revenue,Communications & Computing,ICT,,
http://statistics.data.gov.uk/search?search=E07000114,Thanet District Council,20/03/2018,449791,908.20,,Profile Security Services Limited,PRO018,Operational Services,Revenue,Services,Facilities And Mangement Serv,,
http://statistics.data.gov.uk/search?search=E07000114,Thanet District Council,20/03/2018,449732,1284.50,,Puls Global Ltd,PUL006,Operational Services,Revenue,"Equip, Furniture And Materials",Facilities And Mangement Serv,,
http://statistics.data.gov.uk/search?search=E07000114,Thanet District Council,20/03/2018,449794,450.00,,R Cannon,CAN007,Operational Services,Revenue,Services,Maritime Services,,
http://statistics.data.gov.uk/search?search=E07000114,Thanet District Council,20/03/2018,450229,630.00,,R Cannon,CAN007,Operational Services,Revenue,Services,Maritime Services,,
http://statistics.data.gov.uk/search?search=E07000114,Thanet District Council,20/03/2018,449463,721.50,,R S S (Wessex) Limited,RSS002,Operational Services,Revenue,Agency Staff,Human Resources,,
http://statistics.data.gov.uk/search?search=E07000114,Thanet District Council,20/03/2018,449919,721.50,,R S S (Wessex) Limited,RSS002,Operational Services,Revenue,Agency Staff,Human Resources,,
http://statistics.data.gov.uk/search?search=E07000114,Thanet District Council,20/03/2018,449798,2394.00,,Rand Associates Consultancy Ser Ltd,RAN006,Community Services,Revenue,Services,Construction-Repair And Maint,,
http://statistics.data.gov.uk/search?search=E07000114,Thanet District Council,20/03/2018,449756,392.00,,Rexel Uk Limited,REX003,Operational Services,Revenue,"Repairs,  Alter & Mtce - Build",Building Construction Material,,
http://statistics.data.gov.uk/search?search=E07000114,Thanet District Council,20/03/2018,450300,750.00,,Ruchi Parekh,PAR076,East Kent Shared Services,Revenue,Services,Legal Services,,
http://statistics.data.gov.uk/search?search=E07000114,Thanet District Council,20/03/2018,449685,1434.00,,Safetyshop,SAF010,Operational Services,Revenue,"Equip, Furniture And Materials",Health And Safety,,
http://statistics.data.gov.uk/search?search=E07000114,Thanet District Council,20/03/2018,450164,940.70,,Sellick Partnership Ltd,SEL011,Corporate Governance,Revenue,Services,Human Resources,,
http://statistics.data.gov.uk/search?search=E07000114,Thanet District Council,20/03/2018,450404,1917.00,,Sellick Partnership Ltd,SEL011,Corporate Governance,Revenue,Services,Human Resources,,
http://statistics.data.gov.uk/search?search=E07000114,Thanet District Council,20/03/2018,450431,940.70,,Sellick Partnership Ltd,SEL011,Corporate Governance,Revenue,Services,Human Resources,,
http://statistics.data.gov.uk/search?search=E07000114,Thanet District Council,20/03/2018,450506,5882.91,,South East Building Company Limited,SEB001,Corporate Resources and S151,Balance Sheet,Capital Exp-Non Council Assets,Grants,,
http://statistics.data.gov.uk/search?search=E07000114,Thanet District Council,20/03/2018,450434,1500.00,,South East Employers,SEE001,Corporate Resources and S151,Revenue,Training,Human Resources,,
http://statistics.data.gov.uk/search?search=E07000114,Thanet District Council,20/03/2018,449866,1151.54,,Southern Electric,SEL007,Corporate Governance,Revenue,Energy Costs,Utilities,,
http://statistics.data.gov.uk/search?search=E07000114,Thanet District Council,20/03/2018,450356,-1151.54,,Southern Electric,SEL007,Corporate Governance,Revenue,Energy Costs,Utilities,,
http://statistics.data.gov.uk/search?search=E07000114,Thanet District Council,20/03/2018,450358,1077.39,,Southern Electric,SEL007,Corporate Governance,Revenue,Energy Costs,Utilities,,
http://statistics.data.gov.uk/search?search=E07000114,Thanet District Council,20/03/2018,449478,2337.06,,The Glenwood Hotel,GLE007,Community Services,Revenue,Services,Housing Management,,
http://statistics.data.gov.uk/search?search=E07000114,Thanet District Council,20/03/2018,449483,3336.64,,The Glenwood Hotel,GLE007,Community Services,Revenue,Services,Housing Management,,
http://statistics.data.gov.uk/search?search=E07000114,Thanet District Council,20/03/2018,449495,1563.73,,The Glenwood Hotel,GLE007,Community Services,Revenue,Services,Housing Management,,
http://statistics.data.gov.uk/search?search=E07000114,Thanet District Council,20/03/2018,449496,2117.89,,The Glenwood Hotel,GLE007,Community Services,Revenue,Services,Housing Management,,
http://statistics.data.gov.uk/search?search=E07000114,Thanet District Council,20/03/2018,449497,3628.30,,The Glenwood Hotel,GLE007,Community Services,Revenue,Services,Housing Management,,
http://statistics.data.gov.uk/search?search=E07000114,Thanet District Council,20/03/2018,449499,2791.22,,The Glenwood Hotel,GLE007,Community Services,Revenue,Services,Housing Management,,
http://statistics.data.gov.uk/search?search=E07000114,Thanet District Council,20/03/2018,449982,290.00,,The Pipeline,PIP002,Corporate Resources and S151,Balance Sheet,Repairs And Mtce Holding A/C,Various Categories,,
http://statistics.data.gov.uk/search?search=E07000114,Thanet District Council,20/03/2018,449917,251.21,,Total Supplies Ltd,TOT009,Corporate Resources and S151,Revenue,Cleaning & Domestic Supplies,Cleaning And Janitorial,,
http://statistics.data.gov.uk/search?search=E07000114,Thanet District Council,20/03/2018,449855,11559.97,,Town & Country Cleaners Ltd,TOW002,Corporate Resources and S151,Balance Sheet,Repairs And Mtce Holding A/C,Cleaning And Janitorial,,
http://statistics.data.gov.uk/search?search=E07000114,Thanet District Council,20/03/2018,450221,330.00,,Townsends Engineering Ltd,TOW016,Operational Services,Revenue,"Repairs,  Alter & Mtce - Build",Construction-Repair And Maint,,
http://statistics.data.gov.uk/search?search=E07000114,Thanet District Council,20/03/2018,450223,550.00,,Townsends Engineering Ltd,TOW016,Operational Services,Revenue,"Repairs,  Alter & Mtce - Build",Construction-Repair And Maint,,
http://statistics.data.gov.uk/search?search=E07000114,Thanet District Council,20/03/2018,450225,1480.00,,Townsends Engineering Ltd,TOW016,Operational Services,Revenue,"Repairs,  Alter & Mtce - Build",Construction-Repair And Maint,,
http://statistics.data.gov.uk/search?search=E07000114,Thanet District Council,20/03/2018,450512,8280.92,,Trueden Disability Adaptations Ltd,TRU012,Corporate Resources and S151,Balance Sheet,Capital Exp-Non Council Assets,Grants,,
http://statistics.data.gov.uk/search?search=E07000114,Thanet District Council,20/03/2018,450514,8140.00,,Trueden Disability Adaptations Ltd,TRU012,Corporate Resources and S151,Balance Sheet,Capital Exp-Non Council Assets,Grants,,
http://statistics.data.gov.uk/search?search=E07000114,Thanet District Council,20/03/2018,449688,8000.00,,Vector Resourcing Ltd,VEC001,East Kent Shared Services,Revenue,Agency Staff,Human Resources,,
http://statistics.data.gov.uk/search?search=E07000114,Thanet District Council,20/03/2018,449925,7600.00,,Vector Resourcing Ltd,VEC001,East Kent Shared Services,Revenue,Agency Staff,Human Resources,,
http://statistics.data.gov.uk/search?search=E07000114,Thanet District Council,20/03/2018,449983,1717.26,,Veolia Es (Uk) Ltd,VEO001,Operational Services,Revenue,Cleaning & Domestic Supplies,Environmental Services,,
http://statistics.data.gov.uk/search?search=E07000114,Thanet District Council,20/03/2018,450253,248.40,,Viridor Waste Management Ltd,VIR003,Corporate Governance,Revenue,Private Contractors,Environmental Services,,
http://statistics.data.gov.uk/search?search=E07000114,Thanet District Council,20/03/2018,450254,285.77,,Viridor Waste Management Ltd,VIR003,Corporate Governance,Revenue,Cleaning & Domestic Supplies,Environmental Services,,
http://statistics.data.gov.uk/search?search=E07000114,Thanet District Council,20/03/2018,450236,960.00,,Visit Kent Ltd,VIS005,Community Services,Revenue,Communications & Computing,Arts And Leisure Services,,
http://statistics.data.gov.uk/search?search=E07000114,Thanet District Council,20/03/2018,450387,7511.33,,Vodafone Limited (Corporate),VOD001,Corporate Resources and S151,Balance Sheet,Mobile Phone Holding A/C,ICT,,
http://statistics.data.gov.uk/search?search=E07000114,Thanet District Council,20/03/2018,450491,234171.43,,W W Martin Ltd,MAR003,Corporate Resources and S151,Balance Sheet,Council Dwellings,Construction-Repair And Maint,,
http://statistics.data.gov.uk/search?search=E07000114,Thanet District Council,20/03/2018,450508,11646.00,,Westbrook Construction (Margate) Ltd,WES021,Corporate Resources and S151,Balance Sheet,Capital Exp-Non Council Assets,Various Categories,,
http://statistics.data.gov.uk/search?search=E07000114,Thanet District Council,20/03/2018,450155,500.00,,Your Leisure Kent Limited,YOU016,Community Services,Revenue,Rents,Arts And Leisure Services,,
http://statistics.data.gov.uk/search?search=E07000114,Thanet District Council,20/03/2018,450205,354.00,,Zen Internet Ltd,ZEN001,Community Services,Revenue,Communications & Computing,ICT,,
http://statistics.data.gov.uk/search?search=E07000114,Thanet District Council,22/03/2018,449551,10062.00,,Allen Scott Ltd,ALL046,Operational Services,Revenue,Services,Construction-Repair And Maint,,
http://statistics.data.gov.uk/search?search=E07000114,Thanet District Council,22/03/2018,449747,966.33,,Calibre Cleaning Ltd,CAL010,Corporate Governance,Revenue,Cleaning & Domestic Supplies,Cleaning And Janitorial,,
http://statistics.data.gov.uk/search?search=E07000114,Thanet District Council,22/03/2018,449550,273.60,,Carol Peters,PET003,Community Services,Revenue,Services,Agency Payments,,
http://statistics.data.gov.uk/search?search=E07000114,Thanet District Council,22/03/2018,449407,33268.45,,Certas Energy Uk Ltd,CER005,Operational Services,Revenue,Direct Transport Costs,Vehicle Management,,
http://statistics.data.gov.uk/search?search=E07000114,Thanet District Council,22/03/2018,449740,1696.00,,Cobalt Consulting (Uk) Limited,COB004,Corporate Governance,Revenue,Agency Staff,Human Resources,,
http://statistics.data.gov.uk/search?search=E07000114,Thanet District Council,22/03/2018,447057,794.00,,Freight Transport Association,FRE007,Operational Services,Revenue,Training,Human Resources,,
http://statistics.data.gov.uk/search?search=E07000114,Thanet District Council,22/03/2018,449743,1193.25,,Hr Go (Kent) Ltd,HRG001,Operational Services,Revenue,Agency Staff,Human Resources,,
http://statistics.data.gov.uk/search?search=E07000114,Thanet District Council,22/03/2018,449744,415.03,,Hr Go (Kent) Ltd,HRG001,Operational Services,Revenue,Agency Staff,Human Resources,,
http://statistics.data.gov.uk/search?search=E07000114,Thanet District Council,22/03/2018,450182,1397.80,,Hr Go (Kent) Ltd,HRG001,Operational Services,Revenue,Agency Staff,Human Resources,,
http://statistics.data.gov.uk/search?search=E07000114,Thanet District Council,22/03/2018,450299,1470.00,,It Governance Ltd,ITG001,East Kent Shared Services,Revenue,Services,Consultancy,,
http://statistics.data.gov.uk/search?search=E07000114,Thanet District Council,22/03/2018,449733,461.75,,Keltic Ltd,KEL007,Operational Services,Revenue,"Clothes, Uniforms & Laundry",Clothing,,
http://statistics.data.gov.uk/search?search=E07000114,Thanet District Council,22/03/2018,449689,1750.00,,Knowlton Project Support Ltd,KNO008,Community Services,Revenue,Services,Human Resources,,
http://statistics.data.gov.uk/search?search=E07000114,Thanet District Council,22/03/2018,449826,2100.00,,Metric Group Ltd,MET001,Operational Services,Revenue,"Equip, Furniture And Materials",Street And Traffic Management,,
http://statistics.data.gov.uk/search?search=E07000114,Thanet District Council,22/03/2018,449832,628.26,,Metric Group Ltd,MET001,Operational Services,Revenue,Communications & Computing,Street And Traffic Management,,
http://statistics.data.gov.uk/search?search=E07000114,Thanet District Council,22/03/2018,449434,61923.48,,Molyneux Rose Ltd Cl Acc-I/S M'Gate,MOL002,Operational Services,Revenue,Rents,Facilities And Mangement Serv,,
http://statistics.data.gov.uk/search?search=E07000114,Thanet District Council,22/03/2018,449435,50124.24,,Molyneux Rose Ltd Cl Acc-I/S R'Gate,MOL003,Operational Services,Revenue,Rents,Facilities And Mangement Serv,,
http://statistics.data.gov.uk/search?search=E07000114,Thanet District Council,22/03/2018,449457,466.20,,Morgan Jones Ltd,MOR001,Corporate Governance,Revenue,Agency Staff,Human Resources,,
http://statistics.data.gov.uk/search?search=E07000114,Thanet District Council,22/03/2018,449570,122343.00,,Paramount Ind Property Services Llp,PAR074,Community Services,Revenue,Services,Housing Management,,
http://statistics.data.gov.uk/search?search=E07000114,Thanet District Council,22/03/2018,450721,420.00,,REDACTED PERSONAL DATA,N/A,Community Services,Revenue,Grants & Subscriptions,Rent Deposits,,
http://statistics.data.gov.uk/search?search=E07000114,Thanet District Council,22/03/2018,449796,5302.26,,Townsends Engineering Ltd,TOW016,Operational Services,Revenue,"Repairs,  Alter & Mtce - Build",Construction-Repair And Maint,,
http://statistics.data.gov.uk/search?search=E07000114,Thanet District Council,26/03/2018,PC10466,39.96,,123-Reg,N/A,Community Services,Revenue,Communications & Computing,ICT,,
http://statistics.data.gov.uk/search?search=E07000114,Thanet District Council,26/03/2018,PC10491,97.00,,Actionmanager (Paypal),N/A,Operational Services,Revenue,Services,Financial Services,,
http://statistics.data.gov.uk/search?search=E07000114,Thanet District Council,26/03/2018,PC10457,33.33,,Amazon EU,N/A,Community Services,Revenue,"Equip, Furniture And Materials",Stationery,,
http://statistics.data.gov.uk/search?search=E07000114,Thanet District Council,26/03/2018,PC10474,48.70,,Amazon Svcs EU-UK Amazon,N/A,Operational Services,Revenue,"Equip, Furniture And Materials",Stationery,,
http://statistics.data.gov.uk/search?search=E07000114,Thanet District Council,26/03/2018,PC10500,10.81,,Amazon Svcs EU-UK Amazon,N/A,Corporate Governance,Revenue,"Print, Stat And Gen Off Exps",Stationery,,
http://statistics.data.gov.uk/search?search=E07000114,Thanet District Council,26/03/2018,PC10518,10.81,,Amazon Svcs EU-UK Amazon,N/A,Corporate Resources and S151,Revenue,"Print, Stat And Gen Off Exps",Stationery,,
http://statistics.data.gov.uk/search?search=E07000114,Thanet District Council,26/03/2018,PC10516,179.99,30,Ancestry,N/A,Operational Services,Revenue,Grants & Subscriptions,ICT,,
http://statistics.data.gov.uk/search?search=E07000114,Thanet District Council,26/03/2018,PC10528,129.99,21.67,Argos Retail Group,N/A,Operational Services,Revenue,"Equip, Furniture And Materials",Domestic Goods,,
http://statistics.data.gov.uk/search?search=E07000114,Thanet District Council,26/03/2018,PC10519,26.58,,Asda Superstore,N/A,Corporate Governance,Revenue,Catering,Catering,,
http://statistics.data.gov.uk/search?search=E07000114,Thanet District Council,26/03/2018,PC10531,14.82,,BC Basecamp,N/A,Community Services,Revenue,Communications & Computing,Financial Services,,
http://statistics.data.gov.uk/search?search=E07000114,Thanet District Council,26/03/2018,PC10468,60.26,,Booker Limited,N/A,Community Services,Revenue,Catering,Catering,,
http://statistics.data.gov.uk/search?search=E07000114,Thanet District Council,26/03/2018,PC10469,63.85,,Booker Limited,N/A,Community Services,Revenue,Catering,Catering,,
http://statistics.data.gov.uk/search?search=E07000114,Thanet District Council,26/03/2018,PC10475,17.07,,Booker Limited,N/A,Community Services,Revenue,Catering,Catering,,
http://statistics.data.gov.uk/search?search=E07000114,Thanet District Council,26/03/2018,PC10476,11.87,,Booker Limited,N/A,Community Services,Revenue,Catering,Catering,,
http://statistics.data.gov.uk/search?search=E07000114,Thanet District Council,26/03/2018,PC10490,51.99,,Booker Limited,N/A,Corporate Governance,Revenue,Catering,Catering,,
http://statistics.data.gov.uk/search?search=E07000114,Thanet District Council,26/03/2018,PC10502,87.09,,Booker Limited,N/A,Operational Services,Revenue,"Equip, Furniture And Materials",Catering,,
http://statistics.data.gov.uk/search?search=E07000114,Thanet District Council,26/03/2018,PC10529,35.03,,Booker Limited,N/A,Corporate Governance,Revenue,Catering,Catering,,
http://statistics.data.gov.uk/search?search=E07000114,Thanet District Council,26/03/2018,PC10495,16.66,,Bunnings Warehouse,N/A,Community Services,Revenue,Fixtures & Fittings,Building Construction Material,,
http://statistics.data.gov.uk/search?search=E07000114,Thanet District Council,26/03/2018,PC10488,1448.67,,Cartridge Save,N/A,Operational Services,Revenue,"Print, Stat And Gen Off Exps",Stationery,,
http://statistics.data.gov.uk/search?search=E07000114,Thanet District Council,26/03/2018,PC10487,102.50,,Chartered Inst Of Wastes Management,N/A,Operational Services,Revenue,Grants & Subscriptions,Financial Services,,
http://statistics.data.gov.uk/search?search=E07000114,Thanet District Council,26/03/2018,PC10515,6.00,,Dart Charge,N/A,Operational Services,Revenue,"Equip, Furniture And Materials",Human Resources,,
http://statistics.data.gov.uk/search?search=E07000114,Thanet District Council,26/03/2018,PC10480,127.92,21.32,Easy Hotel Birmingham,N/A,Community Services,Revenue,Expenses,Human Resources,,
http://statistics.data.gov.uk/search?search=E07000114,Thanet District Council,26/03/2018,PC10481,309.84,51.64,Easy Hotel Birmingham,N/A,Community Services,Revenue,Expenses,Human Resources,,
http://statistics.data.gov.uk/search?search=E07000114,Thanet District Council,26/03/2018,PC10509,150.05,,Facebook,N/A,Community Services,Revenue,Miscellaneous Expenses,Facilities And Management Serv,,
http://statistics.data.gov.uk/search?search=E07000114,Thanet District Council,26/03/2018,PC10510,74.41,,Facebook,N/A,Corporate Resources and S151,Revenue,Miscellaneous Expenses,Facilities And Management Serv,,
http://statistics.data.gov.uk/search?search=E07000114,Thanet District Council,26/03/2018,PC10511,6.58,,Facebook,N/A,Community Services,Revenue,Miscellaneous Expenses,Facilities And Management Serv,,
http://statistics.data.gov.uk/search?search=E07000114,Thanet District Council,26/03/2018,PC10512,0.37,,Facebook,N/A,Corporate Resources and S151,Revenue,Miscellaneous Expenses,Facilities And Management Serv,,
http://statistics.data.gov.uk/search?search=E07000114,Thanet District Council,26/03/2018,PC10501,290.00,,Gentworks Limited,N/A,Corporate Governance,Revenue,"Equip, Furniture And Materials",Building Construction Material,,
http://statistics.data.gov.uk/search?search=E07000114,Thanet District Council,26/03/2018,PC10470,121.00,,HM Courts-Services,N/A,Community Services,Revenue,Services,Various Cats-Public Sector,,
http://statistics.data.gov.uk/search?search=E07000114,Thanet District Council,26/03/2018,PC10503,121.00,,HM Courts-Services,N/A,Community Services,Revenue,Services,Various Cats-Public Sector,,
http://statistics.data.gov.uk/search?search=E07000114,Thanet District Council,26/03/2018,PC10504,121.00,,HM Courts-Services,N/A,Community Services,Revenue,Services,Various Cats-Public Sector,,
http://statistics.data.gov.uk/search?search=E07000114,Thanet District Council,26/03/2018,PC10459,1197.00,,HMCTS-Kent099,N/A,East Kent Shared Services,Revenue,Services,Various Cats-Public Sector,,
http://statistics.data.gov.uk/search?search=E07000114,Thanet District Council,26/03/2018,PC10460,1185.00,,HMCTS-Kent099,N/A,East Kent Shared Services,Revenue,Services,Various Cats-Public Sector,,
http://statistics.data.gov.uk/search?search=E07000114,Thanet District Council,26/03/2018,PC10461,1167.00,,HMCTS-Kent099,N/A,East Kent Shared Services,Revenue,Services,Various Cats-Public Sector,,
http://statistics.data.gov.uk/search?search=E07000114,Thanet District Council,26/03/2018,PC10462,84.00,,HMCTS-Kent099,N/A,East Kent Shared Services,Revenue,Services,Various Cats-Public Sector,,
http://statistics.data.gov.uk/search?search=E07000114,Thanet District Council,26/03/2018,PC10463,33.00,,HMCTS-Kent099,N/A,East Kent Shared Services,Revenue,Services,Various Cats-Public Sector,,
http://statistics.data.gov.uk/search?search=E07000114,Thanet District Council,26/03/2018,PC10464,75.00,,HMCTS-Kent099,N/A,East Kent Shared Services,Revenue,Services,Various Cats-Public Sector,,
http://statistics.data.gov.uk/search?search=E07000114,Thanet District Council,26/03/2018,PC10482,26.55,,Lidl UK,N/A,Operational Services,Revenue,Catering,Catering,,
http://statistics.data.gov.uk/search?search=E07000114,Thanet District Council,26/03/2018,PC10465,54.80,,London & South Eastern,N/A,Corporate Resources and S151,Revenue,Public Transport,Human Resources,,
http://statistics.data.gov.uk/search?search=E07000114,Thanet District Council,26/03/2018,PC10477,12.70,,London & South Eastern,N/A,Chief Executive,Revenue,Public Transport,Human Resources,,
http://statistics.data.gov.uk/search?search=E07000114,Thanet District Council,26/03/2018,PC10478,69.40,,London & South Eastern,N/A,Community Services,Revenue,Public Transport,Human Resources,,
http://statistics.data.gov.uk/search?search=E07000114,Thanet District Council,26/03/2018,PC10497,135.25,,London & South Eastern,N/A,Operational Services,Revenue,Public Transport,Human Resources,,
http://statistics.data.gov.uk/search?search=E07000114,Thanet District Council,26/03/2018,PC10506,280.44,,Lynda.Com,N/A,Corporate Resources and S151,Revenue,Services,ICT,,
http://statistics.data.gov.uk/search?search=E07000114,Thanet District Council,26/03/2018,PC10533,-275.95,,Lynda.Com,N/A,Corporate Resources and S151,Revenue,Services,ICT,,
http://statistics.data.gov.uk/search?search=E07000114,Thanet District Council,26/03/2018,PC10483,113.75,,Park Plaza London Waterloo,N/A,East Kent Shared Services,Revenue,Miscellaneous Expenses,Human Resources,,
http://statistics.data.gov.uk/search?search=E07000114,Thanet District Council,26/03/2018,PC10493,50.00,8.34,Pegwell Bay Hotel,N/A,Community Services,Revenue,Rents,Facilities And Management Serv,,
http://statistics.data.gov.uk/search?search=E07000114,Thanet District Council,26/03/2018,PC10494,105.00,17.5,Pegwell Bay Hotel,N/A,Community Services,Revenue,Rents,Facilities And Management Serv,,
http://statistics.data.gov.uk/search?search=E07000114,Thanet District Council,26/03/2018,PC10484,325.00,,Possessionclaim.Gov,N/A,Community Services,Revenue,Services,Various Cats-Public Sector,,
http://statistics.data.gov.uk/search?search=E07000114,Thanet District Council,26/03/2018,PC10485,325.00,,Possessionclaim.Gov,N/A,Community Services,Revenue,Services,Various Cats-Public Sector,,
http://statistics.data.gov.uk/search?search=E07000114,Thanet District Council,26/03/2018,PC10486,325.00,,Possessionclaim.Gov,N/A,Community Services,Revenue,Services,Various Cats-Public Sector,,
http://statistics.data.gov.uk/search?search=E07000114,Thanet District Council,26/03/2018,PC10517,20.02,3.34,Post Office Shop,N/A,Community Services,Revenue,"Print, Stat And Gen Off Exps",Mail Services,,
http://statistics.data.gov.uk/search?search=E07000114,Thanet District Council,26/03/2018,PC10513,186.84,,Printerbase.Co.Uk,N/A,Operational Services,Revenue,"Equip, Furniture And Materials",Mail Services,,
http://statistics.data.gov.uk/search?search=E07000114,Thanet District Council,26/03/2018,PC10479,6.70,,Proper Coffee,N/A,Community Services,Revenue,Catering,Catering,,
http://statistics.data.gov.uk/search?search=E07000114,Thanet District Council,26/03/2018,PC10520,191.63,,Scott Country.Co.Uk,N/A,Operational Services,Revenue,"Equip, Furniture And Materials",Facilities And Management Serv,,
http://statistics.data.gov.uk/search?search=E07000114,Thanet District Council,26/03/2018,PC10456,13.50,,Southeastern Web,N/A,Community Services,Revenue,Public Transport,Human Resources,,
http://statistics.data.gov.uk/search?search=E07000114,Thanet District Council,26/03/2018,PC10489,72.30,,Southeastern Web,N/A,Corporate Resources and S151,Revenue,Public Transport,Human Resources,,
http://statistics.data.gov.uk/search?search=E07000114,Thanet District Council,26/03/2018,PC10492,80.80,,Southeastern Web,N/A,Community Services,Revenue,Public Transport,Human Resources,,
http://statistics.data.gov.uk/search?search=E07000114,Thanet District Council,26/03/2018,PC10496,185.70,,Southeastern Web,N/A,Operational Services,Revenue,Public Transport,Human Resources,,
http://statistics.data.gov.uk/search?search=E07000114,Thanet District Council,26/03/2018,PC10498,81.90,,Southeastern Web,N/A,Corporate Governance,Revenue,Public Transport,Human Resources,,
http://statistics.data.gov.uk/search?search=E07000114,Thanet District Council,26/03/2018,PC10530,-185.70,,Southeastern Web,N/A,Operational Services,Revenue,Public Transport,Human Resources,,
http://statistics.data.gov.uk/search?search=E07000114,Thanet District Council,26/03/2018,PC10527,3.50,,Standfast Burglar Alarm,N/A,Operational Services,Revenue,"Equip, Furniture And Materials",Facilities And Management Serv,,
http://statistics.data.gov.uk/search?search=E07000114,Thanet District Council,26/03/2018,PC10514,12.50,,Till Roll Depot,N/A,Operational Services,Revenue,"Print, Stat And Gen Off Exps",Stationery,,
http://statistics.data.gov.uk/search?search=E07000114,Thanet District Council,26/03/2018,PC10471,104.20,,Trainline,N/A,Community Services,Revenue,Public Transport,Human Resources,,
http://statistics.data.gov.uk/search?search=E07000114,Thanet District Council,26/03/2018,PC10472,84.90,,Trainline,N/A,Chief Executive,Revenue,Public Transport,Human Resources,,
http://statistics.data.gov.uk/search?search=E07000114,Thanet District Council,26/03/2018,PC10505,5.89,,Twitter Online Ads,N/A,Corporate Resources and S151,Revenue,Miscellaneous Expenses,ICT,,
http://statistics.data.gov.uk/search?search=E07000114,Thanet District Council,26/03/2018,PC10507,5.89,,Twitter Online Ads,N/A,Corporate Resources and S151,Revenue,Miscellaneous Expenses,ICT,,
http://statistics.data.gov.uk/search?search=E07000114,Thanet District Council,26/03/2018,PC10508,6.33,,Twitter Online Ads,N/A,Corporate Resources and S151,Revenue,Miscellaneous Expenses,ICT,,
http://statistics.data.gov.uk/search?search=E07000114,Thanet District Council,26/03/2018,PC10532,4.49,,Twitter Online Ads,N/A,Corporate Resources and S151,Revenue,Miscellaneous Expenses,ICT,,
http://statistics.data.gov.uk/search?search=E07000114,Thanet District Council,27/03/2018,450430,300.00,,Advanced Bird & Pest Control Ltd,ADV001,Operational Services,Revenue,"Repairs,  Alter & Mtce - Build",Environmental Services,,
http://statistics.data.gov.uk/search?search=E07000114,Thanet District Council,27/03/2018,449757,18000.00,,Advanced Business Solutions,COA011,Corporate Resources and S151,Revenue,Communications & Computing,ICT,,
http://statistics.data.gov.uk/search?search=E07000114,Thanet District Council,27/03/2018,450925,400.00,,All About Asbestos Limited,ALL044,Operational Services,Revenue,"Repairs,  Alter & Mtce - Build",Environmental Services,,
http://statistics.data.gov.uk/search?search=E07000114,Thanet District Council,27/03/2018,450887,1187.50,,Alpha Parking Ltd,ALP006,Operational Services,Revenue,"Equip, Furniture And Materials",Human Resources,,
http://statistics.data.gov.uk/search?search=E07000114,Thanet District Council,27/03/2018,451050,792.00,,Andrews & Elliott Limited,AND001,Operational Services,Revenue,"Repairs,  Alter & Mtce - Build",Cemetery And Crematorium,,
http://statistics.data.gov.uk/search?search=E07000114,Thanet District Council,27/03/2018,450346,400.00,,Anna Becvar Consultancy,BEC002,Operational Services,Revenue,Cont Hire & Operating Lease,Consultancy,,
http://statistics.data.gov.uk/search?search=E07000114,Thanet District Council,27/03/2018,450489,812.00,,Aston Walker,AST008,Community Services,Revenue,Services,Cemetery And Crematorium,,
http://statistics.data.gov.uk/search?search=E07000114,Thanet District Council,27/03/2018,450490,786.00,,Aston Walker,AST008,Community Services,Revenue,Services,Cemetery And Crematorium,,
http://statistics.data.gov.uk/search?search=E07000114,Thanet District Council,27/03/2018,450461,588.00,,British Telecommunications Plc,BTE005,Operational Services,Revenue,Communications & Computing,ICT,,
http://statistics.data.gov.uk/search?search=E07000114,Thanet District Council,27/03/2018,450766,350.00,,C Stevens & Sons,STE034,Corporate Resources and S151,Balance Sheet,Other Land And Buildings-Hra,ICT,,
http://statistics.data.gov.uk/search?search=E07000114,Thanet District Council,27/03/2018,450315,70.56,,Canon (Uk) Ltd,CAN021,Community Services,Revenue,"Equip, Furniture And Materials",Facilities And Mangement Serv,,
http://statistics.data.gov.uk/search?search=E07000114,Thanet District Council,27/03/2018,450315,1409.41,,Canon (Uk) Ltd,CAN021,Corporate Governance,Revenue,"Equip, Furniture And Materials",Facilities And Mangement Serv,,
http://statistics.data.gov.uk/search?search=E07000114,Thanet District Council,27/03/2018,450315,360.15,,Canon (Uk) Ltd,CAN021,Operational Services,Revenue,"Equip, Furniture And Materials",Facilities And Mangement Serv,,
http://statistics.data.gov.uk/search?search=E07000114,Thanet District Council,27/03/2018,450343,1320.00,,Canon (Uk) Ltd,CAN021,Corporate Governance,Revenue,"Equip, Furniture And Materials",Facilities And Mangement Serv,,
http://statistics.data.gov.uk/search?search=E07000114,Thanet District Council,27/03/2018,451001,460.00,,Caravan Park Elec Services Limited,CAR048,Corporate Resources and S151,Balance Sheet,Rechargeable Works,Building Construction Material,,
http://statistics.data.gov.uk/search?search=E07000114,Thanet District Council,27/03/2018,450219,385.50,,Casement Signs And Traffic,CAS001,Operational Services,Revenue,"Equip, Furniture And Materials",Street And Traffic Management,,
http://statistics.data.gov.uk/search?search=E07000114,Thanet District Council,27/03/2018,450445,452.92,,Casement Signs And Traffic,CAS001,Operational Services,Revenue,"Repairs,  Alter & Mtce - Build",Street And Traffic Management,,
http://statistics.data.gov.uk/search?search=E07000114,Thanet District Council,27/03/2018,450401,211.30,,Castle Automotive & Eng Supp Ltd,CAS024,Operational Services,Revenue,"Equip, Furniture And Materials",Vehicle Management,,
http://statistics.data.gov.uk/search?search=E07000114,Thanet District Council,27/03/2018,450738,259.61,,Ccs Media Limited,CCS003,Corporate Governance,Revenue,Communications & Computing,ICT,,
http://statistics.data.gov.uk/search?search=E07000114,Thanet District Council,27/03/2018,450998,1198.94,,Centurylink Communications Uk Ltd,CEN021,Corporate Resources and S151,Balance Sheet,Telephone Holding Account,ICT,,
http://statistics.data.gov.uk/search?search=E07000114,Thanet District Council,27/03/2018,451101,490.00,,Clague Llp,CLA038,Operational Services,Revenue,Services,Construction-Repair And Maint,,
http://statistics.data.gov.uk/search?search=E07000114,Thanet District Council,27/03/2018,449785,3656.00,,Cobalt Telephone Technologies Ltd,COB002,Operational Services,Revenue,Services,ICT,,
http://statistics.data.gov.uk/search?search=E07000114,Thanet District Council,27/03/2018,449888,360.00,,Dha Planning Limited,DHA002,Community Services,Revenue,Services,Consultancy,,
http://statistics.data.gov.uk/search?search=E07000114,Thanet District Council,27/03/2018,450757,3244.34,,Dha Planning Limited,DHA002,Community Services,Revenue,Services,Consultancy,,
http://statistics.data.gov.uk/search?search=E07000114,Thanet District Council,27/03/2018,450452,2378.60,,District Surveyors Association Limited,DIS002,Community Services,Revenue,Grants & Subscriptions,Financial Services,,
http://statistics.data.gov.uk/search?search=E07000114,Thanet District Council,27/03/2018,450678,462.12,,E.On,EON001,Community Services,Revenue,Energy Costs,Utilities,,
http://statistics.data.gov.uk/search?search=E07000114,Thanet District Council,27/03/2018,449849,225.00,,East Kent Components Ltd,EKC006,Operational Services,Revenue,Direct Transport Costs,Vehicle Management,,
http://statistics.data.gov.uk/search?search=E07000114,Thanet District Council,27/03/2018,449850,249.30,,East Kent Components Ltd,EKC006,Operational Services,Revenue,Direct Transport Costs,Vehicle Management,,
http://statistics.data.gov.uk/search?search=E07000114,Thanet District Council,27/03/2018,448000,9305.33,,East Kent Housing Ltd,EKH002,Community Services,Revenue,Services,Housing Management,,
http://statistics.data.gov.uk/search?search=E07000114,Thanet District Council,27/03/2018,450429,1656.48,,Edmundson Electrical Limited,EDM001,Operational Services,Revenue,"Repairs,  Alter & Mtce - Build",Building Construction Material,,
http://statistics.data.gov.uk/search?search=E07000114,Thanet District Council,27/03/2018,450470,299.37,,Edmundson Electrical Limited,EDM001,Operational Services,Revenue,"Repairs,  Alter & Mtce - Build",Building Construction Material,,
http://statistics.data.gov.uk/search?search=E07000114,Thanet District Council,27/03/2018,450739,1850.20,,Edmundson Electrical Limited,EDM001,Operational Services,Revenue,"Repairs,  Alter & Mtce - Build",Building Construction Material,,
http://statistics.data.gov.uk/search?search=E07000114,Thanet District Council,27/03/2018,450740,343.97,,Edmundson Electrical Limited,EDM001,Operational Services,Revenue,"Repairs,  Alter & Mtce - Build",Building Construction Material,,
http://statistics.data.gov.uk/search?search=E07000114,Thanet District Council,27/03/2018,450765,246.92,,Edmundson Electrical Limited,EDM001,Operational Services,Revenue,"Repairs,  Alter & Mtce - Build",Building Construction Material,,
http://statistics.data.gov.uk/search?search=E07000114,Thanet District Council,27/03/2018,451095,450.00,,Electoral Reform Services,ELE010,Corporate Governance,Revenue,"Print, Stat And Gen Off Exps",Facilities And Mangement Serv,,
http://statistics.data.gov.uk/search?search=E07000114,Thanet District Council,27/03/2018,450899,643.69,,Farrer Barnes Limited,FAR012,Corporate Resources and S151,Revenue,Agency Staff,Human Resources,,
http://statistics.data.gov.uk/search?search=E07000114,Thanet District Council,27/03/2018,450397,1026.60,,Hays Specialist Recruitment Ltd,HAY020,Community Services,Revenue,Agency Staff,Human Resources,,
http://statistics.data.gov.uk/search?search=E07000114,Thanet District Council,27/03/2018,449769,650.00,,Hi Way Services Ltd,HIW002,Operational Services,Revenue,"Repairs,  Alter & Mtce - Build",Highway Equipment And Material,,
http://statistics.data.gov.uk/search?search=E07000114,Thanet District Council,27/03/2018,450776,6450.00,,Hilton Cabinet Co Ltd,HIL002,Corporate Resources and S151,Balance Sheet,Other Land And Buildings-Hra,Furniture And Soft Furnishings,,
http://statistics.data.gov.uk/search?search=E07000114,Thanet District Council,27/03/2018,450184,709.85,,Hr Go (Kent) Ltd,HRG001,Operational Services,Revenue,Agency Staff,Human Resources,,
http://statistics.data.gov.uk/search?search=E07000114,Thanet District Council,27/03/2018,450187,1193.25,,Hr Go (Kent) Ltd,HRG001,Operational Services,Revenue,Agency Staff,Human Resources,,
http://statistics.data.gov.uk/search?search=E07000114,Thanet District Council,27/03/2018,450741,449.55,,Hr Go (Kent) Ltd,HRG001,Operational Services,Revenue,Agency Staff,Human Resources,,
http://statistics.data.gov.uk/search?search=E07000114,Thanet District Council,27/03/2018,450741,346.14,,Hr Go (Kent) Ltd,HRG001,Operational Services,Revenue,Services,Human Resources,,
http://statistics.data.gov.uk/search?search=E07000114,Thanet District Council,27/03/2018,450743,973.10,,Hr Go (Kent) Ltd,HRG001,Operational Services,Revenue,Agency Staff,Human Resources,,
http://statistics.data.gov.uk/search?search=E07000114,Thanet District Council,27/03/2018,450745,1062.64,,Hr Go (Kent) Ltd,HRG001,Operational Services,Revenue,Agency Staff,Human Resources,,
http://statistics.data.gov.uk/search?search=E07000114,Thanet District Council,27/03/2018,450746,622.55,,Hr Go (Kent) Ltd,HRG001,Operational Services,Revenue,Agency Staff,Human Resources,,
http://statistics.data.gov.uk/search?search=E07000114,Thanet District Council,27/03/2018,450881,449.55,,Hr Go (Kent) Ltd,HRG001,Operational Services,Revenue,Agency Staff,Human Resources,,
http://statistics.data.gov.uk/search?search=E07000114,Thanet District Council,27/03/2018,450881,269.22,,Hr Go (Kent) Ltd,HRG001,Operational Services,Revenue,Services,Human Resources,,
http://statistics.data.gov.uk/search?search=E07000114,Thanet District Council,27/03/2018,450882,542.08,,Hr Go (Kent) Ltd,HRG001,Operational Services,Revenue,Agency Staff,Human Resources,,
http://statistics.data.gov.uk/search?search=E07000114,Thanet District Council,27/03/2018,450947,1145.15,,Hr Go (Kent) Ltd,HRG001,Operational Services,Revenue,Agency Staff,Human Resources,,
http://statistics.data.gov.uk/search?search=E07000114,Thanet District Council,27/03/2018,450454,2795.00,,Hydrosphere Uk Limited,HYD009,Operational Services,Revenue,"Equip, Furniture And Materials",Vehicle Management,,
http://statistics.data.gov.uk/search?search=E07000114,Thanet District Council,27/03/2018,450413,5161.55,,Imperial Civil Enforcement Sols Ltd,IMP008,Operational Services,Revenue,"Equip, Furniture And Materials",Street And Traffic Management,,
http://statistics.data.gov.uk/search?search=E07000114,Thanet District Council,27/03/2018,450767,624.21,,Kent County Council,KCC002,Corporate Resources and S151,Balance Sheet,Capital Exp-Non Council Assets,Various Cats-Public Sector,,
http://statistics.data.gov.uk/search?search=E07000114,Thanet District Council,27/03/2018,450782,7802.00,,Kent County Council,KCC002,Community Services,Revenue,Grants & Subscriptions,Various Cats-Public Sector,,
http://statistics.data.gov.uk/search?search=E07000114,Thanet District Council,27/03/2018,450799,3000.00,,Kent County Council,KCC002,Community Services,Revenue,Grants & Subscriptions,Various Cats-Public Sector,,
http://statistics.data.gov.uk/search?search=E07000114,Thanet District Council,27/03/2018,450471,2789.24,,Kent County Council (Kcs),KCC003,Corporate Governance,Revenue,Energy Costs,Facilities And Mangement Serv,,
http://statistics.data.gov.uk/search?search=E07000114,Thanet District Council,27/03/2018,450478,3295.02,,Kent County Council (Kcs),KCC003,Operational Services,Revenue,Energy Costs,Facilities And Mangement Serv,,
http://statistics.data.gov.uk/search?search=E07000114,Thanet District Council,27/03/2018,450481,1343.34,,Kent County Council (Kcs),KCC003,Corporate Governance,Revenue,Energy Costs,Facilities And Mangement Serv,,
http://statistics.data.gov.uk/search?search=E07000114,Thanet District Council,27/03/2018,450876,1790.55,,Kent County Council (Kcs),KCC003,Operational Services,Revenue,Energy Costs,Facilities And Mangement Serv,,
http://statistics.data.gov.uk/search?search=E07000114,Thanet District Council,27/03/2018,450877,917.36,,Kent County Council (Kcs),KCC003,Operational Services,Revenue,Energy Costs,Facilities And Mangement Serv,,
http://statistics.data.gov.uk/search?search=E07000114,Thanet District Council,27/03/2018,450878,855.17,,Kent County Council (Kcs),KCC003,Operational Services,Revenue,Energy Costs,Facilities And Mangement Serv,,
http://statistics.data.gov.uk/search?search=E07000114,Thanet District Council,27/03/2018,450909,1709.12,,Kent County Council (Kcs),KCC003,Operational Services,Revenue,Energy Costs,Facilities And Mangement Serv,,
http://statistics.data.gov.uk/search?search=E07000114,Thanet District Council,27/03/2018,450854,390.00,,Kent Forklift Training Limited,KFO003,Operational Services,Revenue,Training,Human Resources,,
http://statistics.data.gov.uk/search?search=E07000114,Thanet District Council,27/03/2018,449914,3671.67,,Kgb Cleaning & Support Services Ltd,KGB001,Operational Services,Revenue,Cleaning & Domestic Supplies,Cleaning And Janitorial,,
http://statistics.data.gov.uk/search?search=E07000114,Thanet District Council,27/03/2018,450193,7040.00,,Kingdom Security Limited,KIN039,Operational Services,Revenue,Services,Street And Traffic Management,,
http://statistics.data.gov.uk/search?search=E07000114,Thanet District Council,27/03/2018,449903,492.81,,L W Burt & Son Ltd,BUR027,Corporate Governance,Revenue,"Repairs,  Alter & Mtce - Build",Construction-Repair And Maint,,
http://statistics.data.gov.uk/search?search=E07000114,Thanet District Council,27/03/2018,451094,9900.00,,Link Treasury Services Limited,LIN013,Corporate Resources and S151,Revenue,Services,Financial Services,,
http://statistics.data.gov.uk/search?search=E07000114,Thanet District Council,27/03/2018,449944,450.00,,Lloyd Bore Ltd,LLO003,Operational Services,Revenue,Services,Consultancy,,
http://statistics.data.gov.uk/search?search=E07000114,Thanet District Council,27/03/2018,450763,500.00,,Lloyd Bore Ltd,LLO003,Operational Services,Revenue,Services,Consultancy,,
http://statistics.data.gov.uk/search?search=E07000114,Thanet District Council,27/03/2018,450794,52.50,,Lloyd Bore Ltd,LLO003,Community Services,Revenue,"Equip, Furniture And Materials",Consultancy,,
http://statistics.data.gov.uk/search?search=E07000114,Thanet District Council,27/03/2018,450794,247.50,,Lloyd Bore Ltd,LLO003,Operational Services,Revenue,Services,Consultancy,,
http://statistics.data.gov.uk/search?search=E07000114,Thanet District Council,27/03/2018,450815,1817.45,,Mears Ltd,MEA003,Community Services,Revenue,"Repairs,  Alter & Mtce - Build",Construction-Repair And Maint,,
http://statistics.data.gov.uk/search?search=E07000114,Thanet District Council,27/03/2018,450816,2784.31,,Mears Ltd,MEA003,Community Services,Revenue,"Repairs,  Alter & Mtce - Build",Construction-Repair And Maint,,
http://statistics.data.gov.uk/search?search=E07000114,Thanet District Council,27/03/2018,450444,1500.00,,Michael Page Int Recruitment Ltd,PAG008,East Kent Shared Services,Revenue,Agency Staff,Human Resources,,
http://statistics.data.gov.uk/search?search=E07000114,Thanet District Council,27/03/2018,450786,1425.00,,Michael Page Int Recruitment Ltd,PAG008,East Kent Shared Services,Revenue,Agency Staff,Human Resources,,
http://statistics.data.gov.uk/search?search=E07000114,Thanet District Council,27/03/2018,450769,380.00,,Michelle Williams,WIL064,Community Services,Revenue,Services,Arts And Leisure Services,,
http://statistics.data.gov.uk/search?search=E07000114,Thanet District Council,27/03/2018,450403,11400.00,,Midland Software Limited,MID013,Corporate Resources and S151,Balance Sheet,Plant And Equipment,ICT,,
http://statistics.data.gov.uk/search?search=E07000114,Thanet District Council,27/03/2018,450472,888.56,,Midland Software Limited,MID013,East Kent Shared Services,Revenue,Communications & Computing,ICT,,
http://statistics.data.gov.uk/search?search=E07000114,Thanet District Council,27/03/2018,450473,1601.39,,Midland Software Limited,MID013,East Kent Shared Services,Revenue,Communications & Computing,ICT,,
http://statistics.data.gov.uk/search?search=E07000114,Thanet District Council,27/03/2018,450474,8007.19,,Midland Software Limited,MID013,East Kent Shared Services,Revenue,Communications & Computing,ICT,,
http://statistics.data.gov.uk/search?search=E07000114,Thanet District Council,27/03/2018,449878,270.90,,Morgan Jones Ltd,MOR001,Corporate Governance,Revenue,Agency Staff,Human Resources,,
http://statistics.data.gov.uk/search?search=E07000114,Thanet District Council,27/03/2018,450996,1675.19,,Network Rail,RAI002,Operational Services,Revenue,Rents,Financial Services,,
http://statistics.data.gov.uk/search?search=E07000114,Thanet District Council,27/03/2018,450889,522.24,,Nylon Fasteners Limited,NYL001,Operational Services,Revenue,"Equip, Furniture And Materials",Street And Traffic Management,,
http://statistics.data.gov.uk/search?search=E07000114,Thanet District Council,27/03/2018,450433,724.88,,Ohuk Limited,OHU001,Operational Services,Revenue,Agency Staff,Human Resources,,
http://statistics.data.gov.uk/search?search=E07000114,Thanet District Council,27/03/2018,450863,744.21,,Ohuk Limited,OHU001,Operational Services,Revenue,Agency Staff,Human Resources,,
http://statistics.data.gov.uk/search?search=E07000114,Thanet District Council,27/03/2018,450301,504.14,,Page Plan Prints,PAG009,Community Services,Revenue,"Print, Stat And Gen Off Exps",Facilities And Mangement Serv,,
http://statistics.data.gov.uk/search?search=E07000114,Thanet District Council,27/03/2018,449752,2265.00,,Park Insurance Services,PAR066,Corporate Resources and S151,Balance Sheet,Insurance Holding Account,Financial Services,,
http://statistics.data.gov.uk/search?search=E07000114,Thanet District Council,27/03/2018,450165,1128.20,,Peer 1 (Uk) Limited,PEE003,East Kent Shared Services,Revenue,Communications & Computing,ICT,,
http://statistics.data.gov.uk/search?search=E07000114,Thanet District Council,27/03/2018,450353,308.70,,Perrys Motor Sales Limited,PER001,Operational Services,Revenue,Direct Transport Costs,Vehicle Management,,
http://statistics.data.gov.uk/search?search=E07000114,Thanet District Council,27/03/2018,450447,457.64,,Premier Paper Group Limited,PRE035,Corporate Governance,Revenue,"Print, Stat And Gen Off Exps",Stationery,,
http://statistics.data.gov.uk/search?search=E07000114,Thanet District Council,27/03/2018,450942,368.75,,R C Brady (Uk) Ltd,BRA007,Community Services,Revenue,"Equip, Furniture And Materials",Arts And Leisure Services,,
http://statistics.data.gov.uk/search?search=E07000114,Thanet District Council,27/03/2018,450748,450.00,,R Cannon,CAN007,Operational Services,Revenue,Services,Maritime Services,,
http://statistics.data.gov.uk/search?search=E07000114,Thanet District Council,27/03/2018,450812,245.00,,R Cannon,CAN007,Operational Services,Revenue,Services,Maritime Services,,
http://statistics.data.gov.uk/search?search=E07000114,Thanet District Council,27/03/2018,450480,721.50,,R S S (Wessex) Limited,RSS002,Operational Services,Revenue,Agency Staff,Human Resources,,
http://statistics.data.gov.uk/search?search=E07000114,Thanet District Council,27/03/2018,450859,721.50,,R S S (Wessex) Limited,RSS002,Operational Services,Revenue,Agency Staff,Human Resources,,
http://statistics.data.gov.uk/search?search=E07000114,Thanet District Council,27/03/2018,451104,519.00,,Rics,RIC007,Corporate Governance,Revenue,Employee Related Schemes,Financial Services,,
http://statistics.data.gov.uk/search?search=E07000114,Thanet District Council,27/03/2018,450483,1400.00,,S S Barbers,SSB001,Operational Services,Revenue,"Equip, Furniture And Materials",Horticultural,,
http://statistics.data.gov.uk/search?search=E07000114,Thanet District Council,27/03/2018,450714,862.20,,Scottish Water Business Stream Ltd,SCO019,Operational Services,Revenue,Water Services,Utilities,,
http://statistics.data.gov.uk/search?search=E07000114,Thanet District Council,27/03/2018,450715,2440.72,,Scottish Water Business Stream Ltd,SCO019,Operational Services,Revenue,Water Services,Utilities,,
http://statistics.data.gov.uk/search?search=E07000114,Thanet District Council,27/03/2018,450717,877.67,,Scottish Water Business Stream Ltd,SCO019,Operational Services,Revenue,Water Services,Utilities,,
http://statistics.data.gov.uk/search?search=E07000114,Thanet District Council,27/03/2018,450986,-1407.88,,Scottish Water Business Stream Ltd,SCO019,Operational Services,Revenue,Energy Costs,Utilities,,
http://statistics.data.gov.uk/search?search=E07000114,Thanet District Council,27/03/2018,449890,1776.60,,Securitas Security Services (Uk) Ltd,SEC019,Operational Services,Revenue,Agency Staff,Facilities And Mangement Serv,,
http://statistics.data.gov.uk/search?search=E07000114,Thanet District Council,27/03/2018,449891,2211.30,,Securitas Security Services (Uk) Ltd,SEC019,Operational Services,Revenue,Agency Staff,Facilities And Mangement Serv,,
http://statistics.data.gov.uk/search?search=E07000114,Thanet District Council,27/03/2018,450897,1134.00,,Securitas Security Services (Uk) Ltd,SEC019,Operational Services,Revenue,Agency Staff,Facilities And Mangement Serv,,
http://statistics.data.gov.uk/search?search=E07000114,Thanet District Council,27/03/2018,450898,2627.10,,Securitas Security Services (Uk) Ltd,SEC019,Operational Services,Revenue,Agency Staff,Facilities And Mangement Serv,,
http://statistics.data.gov.uk/search?search=E07000114,Thanet District Council,27/03/2018,450818,1278.00,,Sellick Partnership Ltd,SEL011,Corporate Governance,Revenue,Services,Human Resources,,
http://statistics.data.gov.uk/search?search=E07000114,Thanet District Council,27/03/2018,450867,940.70,,Sellick Partnership Ltd,SEL011,Corporate Governance,Revenue,Services,Human Resources,,
http://statistics.data.gov.uk/search?search=E07000114,Thanet District Council,27/03/2018,450788,4592.54,,Shoreline Surveys Limited,SHO001,Operational Services,Revenue,"Repairs,  Alter & Mtce - Build",Maritime Services,,
http://statistics.data.gov.uk/search?search=E07000114,Thanet District Council,27/03/2018,451075,245.00,,Snap Surveys Ltd,SNA002,Corporate Resources and S151,Revenue,Services,ICT,,
http://statistics.data.gov.uk/search?search=E07000114,Thanet District Council,27/03/2018,449173,1106.79,,Southern Electric,SEL007,Operational Services,Revenue,Energy Costs,Utilities,,
http://statistics.data.gov.uk/search?search=E07000114,Thanet District Council,27/03/2018,449487,534.82,,Southern Electric,SEL007,Community Services,Revenue,Energy Costs,Utilities,,
http://statistics.data.gov.uk/search?search=E07000114,Thanet District Council,27/03/2018,449710,430.84,,Southern Electric,SEL007,Operational Services,Revenue,Energy Costs,Utilities,,
http://statistics.data.gov.uk/search?search=E07000114,Thanet District Council,27/03/2018,449723,437.62,,Southern Electric,SEL007,Corporate Governance,Revenue,Energy Costs,Utilities,,
http://statistics.data.gov.uk/search?search=E07000114,Thanet District Council,27/03/2018,449853,351.10,,Southern Electric,SEL007,Operational Services,Revenue,Energy Costs,Utilities,,
http://statistics.data.gov.uk/search?search=E07000114,Thanet District Council,27/03/2018,450007,887.98,,Southern Electric,SEL007,Community Services,Revenue,Energy Costs,Utilities,,
http://statistics.data.gov.uk/search?search=E07000114,Thanet District Council,27/03/2018,450016,3229.68,,Southern Electric,SEL007,Community Services,Revenue,Energy Costs,Utilities,,
http://statistics.data.gov.uk/search?search=E07000114,Thanet District Council,27/03/2018,450344,-304.37,,Southern Electric,SEL007,Operational Services,Revenue,Energy Costs,Utilities,,
http://statistics.data.gov.uk/search?search=E07000114,Thanet District Council,27/03/2018,450347,-3229.68,,Southern Electric,SEL007,Community Services,Revenue,Energy Costs,Utilities,,
http://statistics.data.gov.uk/search?search=E07000114,Thanet District Council,27/03/2018,450348,-534.82,,Southern Electric,SEL007,Community Services,Revenue,Energy Costs,Utilities,,
http://statistics.data.gov.uk/search?search=E07000114,Thanet District Council,27/03/2018,450350,455.69,,Southern Electric,SEL007,Community Services,Revenue,Energy Costs,Utilities,,
http://statistics.data.gov.uk/search?search=E07000114,Thanet District Council,27/03/2018,450359,-437.62,,Southern Electric,SEL007,Corporate Governance,Revenue,Energy Costs,Utilities,,
http://statistics.data.gov.uk/search?search=E07000114,Thanet District Council,27/03/2018,450361,-351.10,,Southern Electric,SEL007,Operational Services,Revenue,Energy Costs,Utilities,,
http://statistics.data.gov.uk/search?search=E07000114,Thanet District Council,27/03/2018,450363,-1106.79,,Southern Electric,SEL007,Operational Services,Revenue,Energy Costs,Utilities,,
http://statistics.data.gov.uk/search?search=E07000114,Thanet District Council,27/03/2018,450364,1292.32,,Southern Electric,SEL007,Operational Services,Revenue,Energy Costs,Utilities,,
http://statistics.data.gov.uk/search?search=E07000114,Thanet District Council,27/03/2018,450365,-430.84,,Southern Electric,SEL007,Operational Services,Revenue,Energy Costs,Utilities,,
http://statistics.data.gov.uk/search?search=E07000114,Thanet District Council,27/03/2018,450366,417.25,,Southern Electric,SEL007,Operational Services,Revenue,Energy Costs,Utilities,,
http://statistics.data.gov.uk/search?search=E07000114,Thanet District Council,27/03/2018,450369,3096.16,,Southern Electric,SEL007,Community Services,Revenue,Energy Costs,Utilities,,
http://statistics.data.gov.uk/search?search=E07000114,Thanet District Council,27/03/2018,450372,6259.53,,Southern Electric,SEL007,Community Services,Revenue,Energy Costs,Utilities,,
http://statistics.data.gov.uk/search?search=E07000114,Thanet District Council,27/03/2018,450377,285.77,,Southern Electric,SEL007,Community Services,Revenue,Energy Costs,Utilities,,
http://statistics.data.gov.uk/search?search=E07000114,Thanet District Council,27/03/2018,450384,262.55,,Southern Electric,SEL007,Operational Services,Revenue,Energy Costs,Utilities,,
http://statistics.data.gov.uk/search?search=E07000114,Thanet District Council,27/03/2018,450392,3229.68,,Southern Electric,SEL007,Community Services,Revenue,Energy Costs,Utilities,,
http://statistics.data.gov.uk/search?search=E07000114,Thanet District Council,27/03/2018,450688,981.35,,Southern Electric,SEL007,Operational Services,Revenue,Energy Costs,Utilities,,
http://statistics.data.gov.uk/search?search=E07000114,Thanet District Council,27/03/2018,450694,2487.64,,Southern Electric,SEL007,Operational Services,Revenue,Energy Costs,Utilities,,
http://statistics.data.gov.uk/search?search=E07000114,Thanet District Council,27/03/2018,450698,314.93,,Southern Electric,SEL007,Operational Services,Revenue,Energy Costs,Utilities,,
http://statistics.data.gov.uk/search?search=E07000114,Thanet District Council,27/03/2018,450424,655.75,,Sparshatts Of Kent Ltd,SPA008,Operational Services,Revenue,Direct Transport Costs,Vehicle Management,,
http://statistics.data.gov.uk/search?search=E07000114,Thanet District Council,27/03/2018,450342,618.50,,Streetmaster (S.Wales) Limited,STR001,Operational Services,Revenue,"Equip, Furniture And Materials",Highway Equipment And Material,,
http://statistics.data.gov.uk/search?search=E07000114,Thanet District Council,27/03/2018,449963,571.50,,Studio Sam Causer Ltd,STU015,Corporate Resources and S151,Balance Sheet,Community Assets,Construction-Repair And Maint,,
http://statistics.data.gov.uk/search?search=E07000114,Thanet District Council,27/03/2018,451097,480.00,,Sycon Uk Ltd,SYC002,Community Services,Revenue,Grants & Subscriptions,Rent Deposits,,
http://statistics.data.gov.uk/search?search=E07000114,Thanet District Council,27/03/2018,449965,3628.30,,The Glenwood Hotel,GLE007,Community Services,Revenue,Services,Housing Management,,
http://statistics.data.gov.uk/search?search=E07000114,Thanet District Council,27/03/2018,449966,2522.89,,The Glenwood Hotel,GLE007,Community Services,Revenue,Services,Housing Management,,
http://statistics.data.gov.uk/search?search=E07000114,Thanet District Council,27/03/2018,449969,1837.06,,The Glenwood Hotel,GLE007,Community Services,Revenue,Services,Housing Management,,
http://statistics.data.gov.uk/search?search=E07000114,Thanet District Council,27/03/2018,450228,290.00,,The Grand Garage,GRA016,Operational Services,Revenue,"Equip, Furniture And Materials",Vehicle Management,,
http://statistics.data.gov.uk/search?search=E07000114,Thanet District Council,27/03/2018,449918,561.24,,Total Supplies Ltd,TOT009,Operational Services,Revenue,"Equip, Furniture And Materials",Cleaning And Janitorial,,
http://statistics.data.gov.uk/search?search=E07000114,Thanet District Council,27/03/2018,450858,1050.00,,Travmedia (Uk) Limited,TRA059,Community Services,Revenue,Services,Facilities And Mangement Serv,,
http://statistics.data.gov.uk/search?search=E07000114,Thanet District Council,27/03/2018,450240,924.00,,Veale Wasbrough Vizards Llp,VEA001,Operational Services,Revenue,Services,Legal Services,,
http://statistics.data.gov.uk/search?search=E07000114,Thanet District Council,27/03/2018,451020,780.50,,Veale Wasbrough Vizards Llp,VEA001,Operational Services,Revenue,Services,Legal Services,,
http://statistics.data.gov.uk/search?search=E07000114,Thanet District Council,27/03/2018,450916,375.00,,W Brazil & Bros,BRA001,Corporate Resources and S151,Balance Sheet,Council Dwellings,Environmental Services,,
http://statistics.data.gov.uk/search?search=E07000114,Thanet District Council,27/03/2018,450924,990.00,,W Brazil & Bros,BRA001,Operational Services,Revenue,Grounds Mtce Costs,Environmental Services,,
http://statistics.data.gov.uk/search?search=E07000114,Thanet District Council,27/03/2018,451085,750.00,,W Brazil & Bros,BRA001,Operational Services,Revenue,"Repairs,  Alter & Mtce - Build",Environmental Services,,
http://statistics.data.gov.uk/search?search=E07000114,Thanet District Council,27/03/2018,451087,1000.00,,W Brazil & Bros,BRA001,Operational Services,Revenue,"Repairs,  Alter & Mtce - Build",Environmental Services,,
http://statistics.data.gov.uk/search?search=E07000114,Thanet District Council,27/03/2018,450772,325.00,,Watling Tyre Service Ltd,WAT003,Operational Services,Revenue,"Equip, Furniture And Materials",Vehicle Management,,
http://statistics.data.gov.uk/search?search=E07000114,Thanet District Council,27/03/2018,450772,575.00,,Watling Tyre Service Ltd,WAT003,Operational Services,Revenue,"Repairs,  Alter & Mtce - Build",Vehicle Management,,
http://statistics.data.gov.uk/search?search=E07000114,Thanet District Council,27/03/2018,450419,760.00,,Weather2 Limited,WEA008,Operational Services,Revenue,Communications & Computing,Environmental Services,,
http://statistics.data.gov.uk/search?search=E07000114,Thanet District Council,27/03/2018,451099,30000.00,,Your Leisure Kent Limited,YOU016,Community Services,Revenue,Grants & Subscriptions,Arts And Leisure Services,,
http://statistics.data.gov.uk/search?search=E07000114,Thanet District Council,27/03/2018,451100,142505.00,,Your Leisure Kent Limited,YOU016,Corporate Resources and S151,Balance Sheet,Your Leisure Management/Works,Arts And Leisure Services,,
http://statistics.data.gov.uk/search?search=E07000114,Thanet District Council,28/03/2018,449750,481.67,,Allstar Business Solutions Ltd,ALL038,Operational Services,Revenue,Direct Transport Costs,Vehicle Management,,
http://statistics.data.gov.uk/search?search=E07000114,Thanet District Council,28/03/2018,451000,750.00,,Andrew Lane,LAN034,Community Services,Revenue,Training,Legal Services,,
http://statistics.data.gov.uk/search?search=E07000114,Thanet District Council,28/03/2018,450248,1462.51,,Capita Business Services Ltd,CAP001,Corporate Resources and S151,Revenue,Services,Human Resources,,
http://statistics.data.gov.uk/search?search=E07000114,Thanet District Council,28/03/2018,450999,750.00,,Catherine Rowlands,ROW016,Community Services,Revenue,Training,Legal Services,,
http://statistics.data.gov.uk/search?search=E07000114,Thanet District Council,28/03/2018,451340,1008.00,,Cromptons Solicitors Ltd,CRO030,Community Services,Revenue,Services,Legal Services,,
http://statistics.data.gov.uk/search?search=E07000114,Thanet District Council,28/03/2018,451244,11751.77,,Evermech Services Ltd,EVE011,Corporate Resources and S151,Balance Sheet,Capital Exp-Non Council Assets,Grants,,
http://statistics.data.gov.uk/search?search=E07000114,Thanet District Council,28/03/2018,451233,980.84,,Family Mosaic Housing,FAM001,Corporate Resources and S151,Balance Sheet,Capital Exp-Non Council Assets,Housing Management,,
http://statistics.data.gov.uk/search?search=E07000114,Thanet District Council,28/03/2018,451239,1018.73,,Family Mosaic Housing,FAM001,Corporate Resources and S151,Balance Sheet,Capital Exp-Non Council Assets,Housing Management,,
http://statistics.data.gov.uk/search?search=E07000114,Thanet District Council,28/03/2018,451241,984.44,,Family Mosaic Housing,FAM001,Corporate Resources and S151,Balance Sheet,Capital Exp-Non Council Assets,Housing Management,,
http://statistics.data.gov.uk/search?search=E07000114,Thanet District Council,28/03/2018,451243,1542.40,,Family Mosaic Housing,FAM001,Corporate Resources and S151,Balance Sheet,Capital Exp-Non Council Assets,Housing Management,,
http://statistics.data.gov.uk/search?search=E07000114,Thanet District Council,28/03/2018,451235,691.70,,John Gale,GAL001,Corporate Resources and S151,Balance Sheet,Capital Exp-Non Council Assets,Grants,,
http://statistics.data.gov.uk/search?search=E07000114,Thanet District Council,28/03/2018,451249,31780.00,,Kent Police & Crime Commissioner,KPC002,Community Services,Revenue,Grants & Subscriptions,Facilities And Mangement Serv,,
http://statistics.data.gov.uk/search?search=E07000114,Thanet District Council,28/03/2018,451238,8489.44,,Kierchris Homes Limited,KIE003,Corporate Resources and S151,Balance Sheet,Capital Exp-Non Council Assets,Grants,,
http://statistics.data.gov.uk/search?search=E07000114,Thanet District Council,28/03/2018,450870,7375.00,,Kpr Midlink Ltd,KPR004,Corporate Resources and S151,Revenue,Communications & Computing,ICT,,
http://statistics.data.gov.uk/search?search=E07000114,Thanet District Council,28/03/2018,451003,285702.13,,Maidstone Borough Council,MAI002,Corporate Resources and S151,Balance Sheet,Business Rate Pooling,Various Cats-Public Sector,,
http://statistics.data.gov.uk/search?search=E07000114,Thanet District Council,28/03/2018,451004,638482.00,,Maidstone Borough Council,MAI002,Corporate Resources and S151,Revenue,Revenue Financing,Various Cats-Public Sector,,
http://statistics.data.gov.uk/search?search=E07000114,Thanet District Council,28/03/2018,451004,250173.00,,Maidstone Borough Council,MAI002,Corporate Resources and S151,Balance Sheet,Collection Fund,Various Cats-Public Sector,,
http://statistics.data.gov.uk/search?search=E07000114,Thanet District Council,28/03/2018,451005,638482.00,,Maidstone Borough Council,MAI002,Corporate Resources and S151,Revenue,Revenue Financing,Various Cats-Public Sector,,
http://statistics.data.gov.uk/search?search=E07000114,Thanet District Council,28/03/2018,451005,250173.00,,Maidstone Borough Council,MAI002,Corporate Resources and S151,Balance Sheet,Collection Fund,Various Cats-Public Sector,,
http://statistics.data.gov.uk/search?search=E07000114,Thanet District Council,28/03/2018,451010,638482.00,,Maidstone Borough Council,MAI002,Corporate Resources and S151,Revenue,Revenue Financing,Various Cats-Public Sector,,
http://statistics.data.gov.uk/search?search=E07000114,Thanet District Council,28/03/2018,451010,250173.00,,Maidstone Borough Council,MAI002,Corporate Resources and S151,Balance Sheet,Collection Fund,Various Cats-Public Sector,,
http://statistics.data.gov.uk/search?search=E07000114,Thanet District Council,28/03/2018,451028,2857.86,,Nat West Bank,NWE001,Corporate Resources and S151,Revenue,Services,Various Categories,,
http://statistics.data.gov.uk/search?search=E07000114,Thanet District Council,28/03/2018,451028,628.64,,Nat West Bank,NWE001,East Kent Shared Services,Revenue,Services,Various Categories,,
http://statistics.data.gov.uk/search?search=E07000114,Thanet District Council,28/03/2018,451029,261.82,,Nat West Bank,NWE001,Corporate Resources and S151,Revenue,Services,Various Categories,,
http://statistics.data.gov.uk/search?search=E07000114,Thanet District Council,28/03/2018,451247,1150.00,,Prospects Assured Uk Ltd,PRO032,Community Services,Revenue,Grants & Subscriptions,Rent Deposits,,
http://statistics.data.gov.uk/search?search=E07000114,Thanet District Council,28/03/2018,451248,1453.85,,Prospects Assured Uk Ltd,PRO032,Community Services,Revenue,Grants & Subscriptions,Rent Deposits,,
http://statistics.data.gov.uk/search?search=E07000114,Thanet District Council,28/03/2018,451015,63554.36,,Public Works Loan Board,PWL001,Corporate Resources and S151,Balance Sheet,Debit Interest And Expenses,Investments And Loans,,
http://statistics.data.gov.uk/search?search=E07000114,Thanet District Council,28/03/2018,451264,19350.00,,Public Works Loan Board,PWL001,Corporate Resources and S151,Balance Sheet,Debit Interest And Expenses,Investments And Loans,,
http://statistics.data.gov.uk/search?search=E07000114,Thanet District Council,28/03/2018,451237,1069.20,,REDACTED PERSONAL DATA,N/A,Corporate Resources and S151,Balance Sheet,Capital Exp-Non Council Assets,Grants,,
http://statistics.data.gov.uk/search?search=E07000114,Thanet District Council,28/03/2018,451030,598.78,,Santander Uk Plc,SAN017,Corporate Resources and S151,Revenue,Services,Various Categories,,
http://statistics.data.gov.uk/search?search=E07000114,Thanet District Council,28/03/2018,451021,-115662.00,,Secretary Of State,SEC003,Corporate Resources and S151,Revenue,Revenue Financing,Government Agencies,,
http://statistics.data.gov.uk/search?search=E07000114,Thanet District Council,28/03/2018,451021,1402812.00,,Secretary Of State,SEC003,Corporate Resources and S151,Balance Sheet,Collection Fund,Government Agencies,,
http://statistics.data.gov.uk/search?search=E07000114,Thanet District Council,28/03/2018,451026,44382.00,,Secretary Of State,SEC003,Corporate Resources and S151,Balance Sheet,Business Rates Retention,Government Agencies,,
http://statistics.data.gov.uk/search?search=E07000114,Thanet District Council,28/03/2018,451341,800.00,,Springer Homes,SPR004,Community Services,Revenue,Grants & Subscriptions,Rent Deposits,,
http://statistics.data.gov.uk/search?search=E07000114,Thanet District Council,28/03/2018,449900,414.65,,Swann Of York Limited,SWA009,Community Services,Revenue,"Equip, Furniture And Materials",Stationery,,
http://statistics.data.gov.uk/search?search=E07000114,Thanet District Council,28/03/2018,451234,6917.00,,Trueden Disability Adaptations Ltd,TRU012,Corporate Resources and S151,Balance Sheet,Capital Exp-Non Council Assets,Grants,,
http://statistics.data.gov.uk/search?search=E07000114,Thanet District Council,28/03/2018,451242,13763.30,,Trueden Disability Adaptations Ltd,TRU012,Corporate Resources and S151,Balance Sheet,Capital Exp-Non Council Assets,Grants,,
http://statistics.data.gov.uk/search?search=E07000114,Thanet District Council,28/03/2018,451240,817.29,,Willow Tree Home Solutions Ltd,WIL076,Corporate Resources and S151,Balance Sheet,Capital Exp-Non Council Assets,Grants,,
http://statistics.data.gov.uk/search?search=E07000114,Thanet District Council,28/03/2018,451031,256.25,,Worldpay Ltd,WOR008,Corporate Resources and S151,Revenue,Services,Financial Services,,
http://statistics.data.gov.uk/search?search=E07000114,Thanet District Council,28/03/2018,451037,2603.22,,Worldpay Ltd,WOR008,Corporate Resources and S151,Revenue,Services,Financial Services,,
http://statistics.data.gov.uk/search?search=E07000114,Thanet District Council,28/03/2018,451038,2035.90,,Worldpay Ltd,WOR008,Corporate Resources and S151,Revenue,Services,Financial Services,,
